Workbook

Sheet Cover Page
D1: Add company logo
K2: Template version 25.1a (for incinerators) - 27/11/25
K4: Note that there is another version of this template available for co-incinerators
B8: Add photo
K13: Notes:
K14: This template may require adjustments by individual operators to meet specific reporting requirements as defined in the site Permit(s)
B29: Annual Performance Report 2025
B31: Permit EPR/UP3005LJ
B33: Ardley Energy Recovery Facility
B37: VIRIDOR OXFORDSHIRE LIMITED
B39: Year: | C39: 2025
B41: Address: | C41: Ardley ERF, Middleton Stoney Road, Ardley, Oxfordshire, OX27 7AA
B43: Tel: | C43: 07394837764
B45: Email: | C45: ellen.raymond@viridor.com
B47: Prepared by: | C47: Ellen Raymond | F47: Position: | G47: Technical Compliance Lead
B49: Approved by: | C49: David O'Callaghan | F49: Position: | G49: Head of Operation & Maintenance
B51: Version: | C51: V1.0
B53: Issue Date: | C53: 2026-01-01

Sheet Facility Info
A1: =+'Cover Page'!$B$29 -> Annual Performance Report 2025 | E1: =+'Cover Page'!$B$33 -> Ardley Energy Recovery Facility
A3: Plant Description and Design | K3: Notes:
A5: Ardley Energy Recovery Facility (ERF) facility is located close to junction 10 of the M40. The facility has a capacity to process 378,000 tonnes per year of residual municipal waste and has the capability of exporting up to 28MW, the grid export limit of 27MW was increased to 28MW on 1 Jun 24. Viridor is required to submit a summary of the environmental monitoring works undertaken at the site on a quarterly basis. Such reports will form the basis of the annual environmental review report, which is to be submitted to the Environment Agency by 31 Jan as agreed in writing with the Environment Agency of each year in accordance with Condition 4.2.2 of the Permit. The permit EPR/UP3005LJ was issued by Environment Agency to Viridor Waste Management Limited (Viridor) (previously EPR/FP3134GU issued 27 Sep 10). Permit variation (EPR/UP3005LJ/V005) was issued by the EA on 24/10/2025. This report summarises the environmental and performance data collected at the site in 2025 from 1st January to 31st December | K5: Include summary of plant design, design capacity, no. of combustion lines, electrical and heat capacity and any other general information that describes the facility, its location and purpose
A19: Summary of Operational Processes and Procedures
A21: Incoming waste is mainly received from Oxfordshire County Council Waste Partnership, the rest is received from other council areas and third party businesses. Waste is received into an enclosed waste bunker. The waste is loaded into one of two furnaces which combust the waste at >850°C. The hot flue gasses heat boiler water tubes along the flue gas path containing demineralised water to create superheated steam which drives a steam turbine generator set. The turbine generator produces around 31.5MWh and currently exports up to 28MWh. Combusted waste (incinerator bottom ash) is sent to a third party within the footprint of the facility for further processing. The flue gasses are treated with Lime, Activated carbon and Urea to remove potential pollution leaving the stack. The residue containing reacted gas particulates (APCr) is removed and sent via a third party for reprocessing. Emissions are monitored via Continuous Emissions Monitoring equipment (CEMs) provided by Envea UK (previously known as A1-CBISS). | K21: Include summary of key processes and procedures such as (but not limited to); waste reception, control rooms, grate, bed and boiler, energy & heat generation, cooling systems, residue management, emission controls, health and safety systems, maintenance

Sheet Operational Data
A1: =+'Cover Page'!$B$29 -> Annual Performance Report 2025 | E1: =+'Cover Page'!$B$33 -> Ardley Energy Recovery Facility
A3: Operational Data
A4: Plant Size: | B4: 378000 | D4: tonnes pa | J4: Notes:
A5: Nominal net thermal input: | C5: MWth | J5: * Export capacity = nominal generation capacity at the generator terminals minus nominal parasitic load. ** CHP and district heating plants only - put N/A if no heat export. *** Combusted tonnage = tonnes delivered in period + (tonnes in bunker at start of period – tonnes in bunker at end of period), or equivalent calculation depending on plant type **** Availability Definition: The availability of a line is to be calculated by the number of hours the line reported Continuously Monitored emission levels to the Regulator through the calendar year divided by the total number of hours in that year. The overall plant availability is calculated as the mean of all lines in the plant. For clarity this includes periods of abnormal operation. Rationale: The primary function of an Energy from Waste facility is the disposal of waste. It follows therefore that the availability of a plant is determined by the period of time a facility spends undertaking this activity. *****NCV of waste: This should be completed for all plants which have a boiler. Calculate using total thermal power produced by boiler/boiler efficiency, or other suitable calculation.
A6: Nominal electrical export capacity*: | B6: 31.5 | C6: MWe
A7: Nominal heat export capacity**: | B7: 0 | C7: MWth
A8: No. of combustion lines: | B8: 2 | C8: No. of steam turbines: | E8: 1
A10: Waste types received | B10: Unit | C10: Q1 | D10: Q2 | E10: Q3 | F10: Q4 | G10: Year Total | H10: %
A11: Household / Local Authority | B11: tonnes | C11: 73674.04 | D11: 79281.337 | E11: 75264.54 | F11: 67907.5 | G11: =SUM(C11:F11) -> 296127.417 | H11: =IF(G11>0,G11/$G$21,"-") -> 0.7981098848
A12: Commercial & Industrial | C12: 10754.58 | D12: 3823.84 | E12: 5737.36 | F12: 16418.88 | G12: =SUM(C12:F12) -> 36734.66 | H12: 0.09900567653
A13: Hazardous | G13: 0 | H13: -
A14: Clinical | C14: 3193.86 | D14: 3186.34 | E14: 3298.46 | F14: 2705.48 | G14: 12384.14 | H14: 0.03337720178
A15: Waste wood (biomass) | G15: 0 | H15: -
A16: Refuse Derived Fuel (incl. SRF) - H'hold/LA | D16: 1611.02 | E16: 1454.4 | F16: 1885.9 | G16: =SUM(C16:F16) -> 4951.32 | H16: 0.01334458482
A17: Refuse Derived Fuel (incl. SRF) - C&I | C17: 5649.48 | D17: 5254.22 | E17: 4269.24 | F17: 5665.42 | G17: 20838.36 | H17: 0.0561626521
A18: Other [Please specify] | G18: 0 | H18: -
A19: Other [Please specify] | G19: 0 | H19: -
A20: Other [Please specify] | G20: 0 | H20: -
A21: Total waste received | C21: =SUM(C11:C20) -> 93271.96 | D21: =SUM(D11:D20) -> 93156.757 | E21: =SUM(E11:E20) -> 90024 | F21: =SUM(F11:F20) -> 94583.18 | G21: 371035.897
A22: Rejected Waste | C22: 0 | D22: 0 | E22: 0 | F22: 0 | G22: =SUM(C22:F22) -> 0 | H22: =IF(G22>0,G22/$G$21,"-") -> -
A23: Unprocessed waste transferred out | C23: 0 | D23: 2.38 | E23: 0 | F23: 2.54 | G23: =SUM(C23:F23) -> 4.92 | H23: =IF(G23>0,G23/$G$21,"-") -> 1.326017251e-05
A24: Total waste combusted *** | C24: 92367 | D24: 93949 | E24: 91108 | F24: 92578 | G24: =SUM(C24:F24) -> 370002
A26: Energy Usage / Export | B26: Unit | C26: Q1 | D26: Q2 | E26: Q3 | F26: Q4 | G26: Year Total | H26: KWh/te | J26: Password for protected cells A password has been set to prevent accidental editing of cells with formulae. If you still need to make an edit for some reason then the password = 1234
A27: Power generated at generator terminals | B27: MWh | C27: 66248.9457 | D27: 67887.9184 | E27: 61251.8009 | F27: 65332.2243 | G27: =SUM(C27:F27) -> 260720.8893 | H27: =IF(G27>0,G27*1000/$G$24,"-") -> 704.6472433
A28: Power exported to grid | C28: 58713 | D28: 60009 | E28: 53058 | F28: 57319 | G28: =SUM(C28:F28) -> 229099 | H28: =IF(G28>0,G28*1000/$G$24,"-") -> 619.1831396
A29: Power imported | C29: 6 | D29: 43 | E29: 46 | F29: 3 | G29: 98 | H29: =IF(G29>0,G29*1000/$G$24,"-") -> 0.2648634332
A30: Indicative parasitic load | B30: % | C30: =IF(C27>0,(C27-C28)/C27,"-") -> 0.113751934 | D30: =IF(D27>0,(D27-D28)/D27,"-") -> 0.1160577403 | E30: 0.133772408 | F30: 0.1226534744 | G30: =IF(G27>0,1-G28/(G27+G29),"-") -> 0.1216165339
A31: Thermal Energy Exported ** | C31: 0 | D31: 0 | E31: 0 | F31: 0 | G31: =SUM(C31:F31) -> 0 | H31: =IF(G31>0,G31*1000/$G$24,"-") -> -
A32: R1 value (2025) | B32: R1 | C32: - | D32: - | E32: - | F32: - | G32: 0.76
A34: Waste Disposal & Recovery | B34: Unit | C34: Q1 | D34: Q2 | E34: Q3 | F34: Q4 | G34: Year Total | H34: % inputs
A35: APC Residues - produced | B35: tonnes | C35: 2144 | D35: 2001 | E35: 1978 | F35: 1924 | G35: =SUM(C35:F35) -> 8047 | H35: =IF(G35>0,G35/$G$24,"-") -> 0.02174853109
A36: IBA - produced | C36: 16722 | D36: 17327 | E36: 22706 | F36: 18517 | G36: 75272 | H36: =IF(G36>0,G36/$G$24,"-") -> 0.2034367382
A37: Metals recycling (exported) | C37: 1429.28 | D37: 1159 | E37: 1214 | F37: 1285 | G37: =SUM(C37:F37) -> 5087.28 | H37: 0.01374933108
A38: Process water | C38: 992.32 | D38: 346.14 | E38: 563.62 | F38: 1077 | G38: =SUM(C38:F38) -> 2979.08 | H38: 0.008051524046
A39: Rubber Belts | C39: 1.28 | D39: 0 | E39: 1.82 | F39: 0 | G39: 3.1 | H39: 8.37833309e-06
A40: WEEE | C40: 0.24 | D40: 0.8 | E40: 0 | F40: 0.24 | G40: 1.28 | H40: 3.45944076e-06
A42: Raw Material Usage | B42: Unit | C42: Q1 | D42: Q2 | E42: Q3 | F42: Q4 | G42: Year Total | H42: Qty./te
A43: Mains Water | B43: ltrs | C43: 8917000 | D43: 11233000 | E43: 10606000 | F43: 8404000 | G43: =SUM(C43:F43) -> 39160000 | H43: =IF(G43>0,G43/$G$24,"-") -> 105.8372657
A44: Other Water | B44: ltrs | G44: 0 | H44: =IF(G44>0,G44/$G$24,"-") -> -
A45: Ammonia | B45: kgs | G45: 0 | H45: -
A46: Urea | B46: kgs | C46: 94000 | D46: 101000 | E46: 96000 | F46: 91000 | G46: =SUM(C46:F46) -> 382000 | H46: 1.032426852
A47: Activated Carbon | B47: kgs | C47: 22270 | D47: 22890 | E47: 22660 | F47: 24630 | G47: 92450 | H47: 0.2498635143
A48: Lime / hydrated lime | B48: kgs | C48: 1235250 | D48: 1101220 | E48: 1000760 | F48: 966940 | G48: 4304170 | H48: 11.63282901
A49: Fuel oil (Burner fuel) | B49: ltrs | C49: 76048.28 | D49: 8397 | E49: 139459 | F49: 174437 | G49: 398341.28 | H49: 1.076592235
A50: Fuel (White Diesel) | B50: ltrs | C50: 22432.17 | D50: 19588 | E50: 15126 | F50: 9701 | G50: 66847.17 | H50: 0.1806670504
A51: Other | G51: 0 | H51: -
A53: Summary | B53: Line/Unit | C53: Q1 | D53: Q2 | E53: Q3 | F53: Q4 | G53: Year Total | I53: Hrs in year
A54: Availability of waste combustion by line, hrs **** | B54: 1 | C54: 2153.19 | D54: 2182.45 | E54: 2187.93 | F54: 2085.9 | G54: =SUM(C54:F54) -> 8609.47 | H54: =+G54/$I$54 -> 0.98281621 | I54: 8760 | J54: Change this figure to 8784 in a leap year
B55: 2 | C55: 2092.5 | D55: 2183.91 | E55: 2114.34 | F55: 2122.28 | G55: 8513.03 | H55: =+G55/$I$54 -> 0.9718070776
B56: 3 | G56: 0 | H56: 0
B57: 4 | G57: 0 | H57: 0
B58: 5 | G58: =SUM(C58:F58) -> 0 | H58: 0
A59: Hours of turbine operations, hrs | B59: 1 | C59: 2159 | D59: 2172.3 | E59: 2192.5 | F59: 2207.2 | G59: 8731 | H59: 0.9966894977
A60: Hours of turbine operations, hrs | B60: 2 | G60: 0 | H60: 0
A61: Hours of heat / steam export** | B61: hours | C61: 0 | D61: 0 | E61: 0 | F61: 0 | G61: 0 | H61: =IF(B61>0,G60/I54,"n/a") -> 0
A62: Net calorific value of waste***** | B62: MJ/kg | C62: 9.543333333 | D62: 9.816666667 | E62: 9.57 | F62: 9.416666667 | G62: =AVERAGE(C62:F62) -> 9.586666667
A63: Abnormal operation events | B63: qty. | C63: 0 | D63: 0 | E63: 0 | F63: 0 | G63: 0 | H63: =IF(G63>0,"yes","no") -> no
A64: Abnormal operation duration | B64: hours | C64: 0 | D64: 0 | E64: 0 | F64: 0 | G64: 0 | H64: =+(G64)/I54 -> 0
A65: Permit Breaches | B65: qty. | C65: 2 | D65: 0 | E65: 2 | F65: 0 | G65: 4 | H65: =IF(G65>0,"yes","no") -> yes

Sheet Operational Summary
A1: =+'Cover Page'!$B$29 -> Annual Performance Report 2025 | E1: =+'Cover Page'!$B$33 -> Ardley Energy Recovery Facility
A3: Summary of Plant Operations and Maintenance during the reporting year | K3: Notes:
A5: During 2025 the site accepted 371,036 tonnes of waste, generating 260,307 MWh of electricity and exporting 229,099 MWh of electricity to the grid. Line 1 availability was 98.3%, line 2 availability was 97.2% and the tubrine availability was 99.7%. This is a significant increase compared to 2024 and is due to having no major planned outage in 2025. The line 1 minor pit-stop outage took place from 12th to 16th October and the line 2 pit-stop outage took place from 30th to 3rd September. Maintenance works completed included baghouse filter replacements, grate repairs and remedial works that cannot be repairs whilst online. Other downtime in 2025 was due to line 2 grate repairs, minor boiler trips, second pass screw blockages and a loss of compressed air across site. | K5: Include summary of key operational and/or maintenance activity undertaken in the year, such as any major component upgrades and/or replacements
A18: =+'Cover Page'!C39 -> 2025 | B18: Plant shut-downs
A19: Start date | B19: End date | C19: Reason for shut-down | K19: Provide a very brief reason for plant shut-down e.g. "Shut-down prior to major outage"; "Emergency shut-down due to boiler tube leak". All emergency shut-downs must be listed (irrespective of whether or not they were required to be reported to the EA). There is no need to include periods of hot-standby here (e.g. to clear feed chute hopper blockages). For clinical waste incinerators which require regular shut-downs for boiler cleaning, there is no need to record these here (only those prior to major outages, and emergency shut-downs).
A20: 2025-02-23 | B20: 2025-02-26 | C20: Line 2 grate repairs, offline for 56.3 hours
A21: 2025-07-14 | B21: 2025-07-17 | C21: Line 2 grate repairs, offline for 62 hours
A22: 2025-08-01 | B22: 2025-08-02 | C22: Line 2 2nd pass screw blockage
A23: 2025-08-13 | B23: 2025-08-13 | C23: Line 1 and line 2 loss of compressed aire
A24: 2025-10-10 | B24: 2025-10-10 | C24: Line 1 Emergency shutdown for expansion joint repair
A25: 2025-10-12 | B25: 2025-10-16 | C25: Line 1 baghouse filter repairs and pit-stop planned outage brought forward
A26: 2025-11-30 | B26: 2025-12-03 | C26: Line 2 pit-stop planned outage

Sheet Perf. Form 1
A1: =+'Cover Page'!C39 -> 2025 | B1: Annual Reporting Performance Form 1
A3: =+'Cover Page'!B31 -> Permit EPR/UP3005LJ | F3: Operator: | G3: =+'Cover Page'!B37 -> VIRIDOR OXFORDSHIRE LIMITED
A4: Facility: | B4: =+'Cover Page'!B33:I33 -> Ardley Energy Recovery Facility | F4: Form: | G4: Performance 1
A6: Reporting Period from: | D6: 2025-01-01 | F6: to: | G6: 2025-12-31
A8: =+A1 -> 2025 | B8: Annual Reporting of Waste Disposal and Recovery
A9: Waste Description | C9: Disposal Route(s) | E9: Disposal Tonnes | G9: Recovery Tonnes | I9: % / tonne of waste incinerated
A10: 1) Hazardous Wastes
A11: APC Residues | C11: OCO Technology | G11: =2135.18+2040.36+1982.84+1941.78 -> 8100.16 | I11: =IF((E11+G11)>0,(E11+G11)/'Operational Data'!$G$24, "-") -> 0.02189220599
A12: IBA | C12: Fortis | E12: 0 | G12: 0 | I12: =IF((E12+G12)>0,(E12+G12)/'Operational Data'!$G$24, "-") -> -
A13: WEEE | G13: ='Operational Data'!G40 -> 1.28 | I13: =IF((E13+G13)>0,(E13+G13)/'Operational Data'!$G$24, "-") -> 3.45944076e-06
I14: =IF((E14+G14)>0,(E14+G14)/'Operational Data'!$G$24, "-") -> -
I15: =IF((E15+G15)>0,(E15+G15)/'Operational Data'!$G$24, "-") -> -
A16: Total Hazardous Waste | E16: =SUM(E11:F15) -> 0 | G16: =SUM(G11:H15) -> 8101.44 | I16: =IF((E16+G16)>0,(E16+G16)/'Operational Data'!$G$24, "-") -> 0.02189566543
A18: 2) Non-Hazardous Wastes
A19: IBA | C19: Fortis | E19: =20.34 -> 20.34 | G19: ='Operational Data'!G36 -> 75272 | I19: =IF((E19+G19)>0,(E19+G19)/'Operational Data'!$G$24, "-") -> 0.2034917109
A20: Ferrous Metal | C20: Various | G20: ='Operational Data'!G37 -> 5087.28 | I20: =IF((E20+G20)>0,(E20+G20)/'Operational Data'!$G$24, "-") -> 0.01374933108
A21: Process Water | C21: Various | E21: ='Operational Data'!G38 -> 2979.08 | I21: =IF((E21+G21)>0,(E21+G21)/'Operational Data'!$G$24, "-") -> 0.008051524046
A22: Rubber | G22: ='Operational Data'!G39 -> 3.1 | I22: =IF((E22+G22)>0,(E22+G22)/'Operational Data'!$G$24, "-") -> 8.37833309e-06
I23: =IF((E23+G23)>0,(E23+G23)/'Operational Data'!$G$24, "-") -> -
I24: =IF((E24+G24)>0,(E24+G24)/'Operational Data'!$G$24, "-") -> -
A25: Total Non-Hazardous Waste | E25: =SUM(E19:F24) -> 2999.42 | G25: =SUM(G19:H24) -> 80362.38 | I25: =IF((E25+G25)>0,(E25+G25)/'Operational Data'!$G$24, "-") -> 0.2253009443
A26: TOTAL WASTE | E26: =+E25+E16 -> 2999.42 | G26: =+G25+G16 -> 88463.82 | I26: =IF((E26+G26)>0,(E26+G26)/'Operational Data'!$G$24, "-") -> 0.2471966097
A28: Operator’s comments :
A29: All IBA produced on site (including the metal content) is reprocessed by Fortis IBA who separate the ferrous and non-ferrous metals for recycling and create IBAA (Incinerator Bottom Ash Aggregate) from the remaining material. Metals seperated before the IBA reaches Fortis by the overhead magnet belt are managed by Viridor for recycling. APCr is taken either through OCO Technologies accelerated carbonation technology where carbonated wastes are blended with binders and fillers and pelletised to form an aggregate, or are sent to Hazardous waste landfill.
A33: =+A1 -> 2025 | B33: Annual Reporting of Water and Other Raw Material Usage
A34: Raw Material | E34: Usage | G34: Unit | H34: Specific Usage | J34: Unit
A35: Mains Water | E35: =+'Operational Data'!G43/1000 -> 39160 | G35: m3 | H35: =IF(E35>0,E35/'Operational Data'!$G$24,"-") -> 0.1058372657 | J35: m3/te
A36: Total Water | E36: =(+'Operational Data'!G44+'Operational Data'!G43)/1000 -> 39160 | G36: m3 | H36: =IF(E36>0,E36/'Operational Data'!$G$24,"-") -> 0.1058372657 | J36: m3/te
A37: Urea / Ammonia | E37: ='Operational Data'!G46 -> 382000 | G37: kg | H37: =IF(E37>0,E37/'Operational Data'!$G$24,"-") -> 1.032426852 | J37: kg/te
A38: Activated Carbon | E38: =+'Operational Data'!G47 -> 92450 | G38: kg | H38: =IF(E38>0,E38/'Operational Data'!$G$24,"-") -> 0.2498635143 | J38: kg/te
A39: Lime / hydrated lime / Sodium Bicarb. | E39: =+'Operational Data'!G48 -> 4304170 | G39: kg | H39: =IF(E39>0,E39/'Operational Data'!$G$24,"-") -> 11.63282901 | J39: kg/te
A41: Operator’s comments :
A45: =+A33 -> 2025 | B45: Annual Reporting of other performance indicators
A46: Parameter | C46: Results by Line
C47: A1 | D47: A2 | E47: A3 | F47: A4 | G47: A5 | I47: Turbine 1 | J47: Turbine 2
A48: Operating hours for the year, hours | C48: ='Operational Data'!G54 -> 8609.47 | D48: ='Operational Data'!G55 -> 8513.03 | I48: ='Operational Data'!G59 -> 8731
A49: Number of periods of abnormal operation, qty. | C49: 0 | D49: 0
A50: Cumulative hours of abnormal operation for this year, hours | C50: 0 | D50: 0
A52: Operator’s comments :
A56: Signed: | G56: Date: | H56: 2025-01-05

Sheet Energy Form 1
A1: =+'Cover Page'!C39 -> 2025 | B1: Annual Reporting of Energy Usage/Export
A3: =+'Cover Page'!B31 -> Permit EPR/UP3005LJ | F3: Operator: | G3: =+'Cover Page'!B37 -> VIRIDOR OXFORDSHIRE LIMITED
A5: Facility: | B5: =+'Cover Page'!B33:I33 -> Ardley Energy Recovery Facility | F5: Form: | G5: Energy 1
A7: Reporting Period from: | D7: =+'Perf. Form 1'!D6:E6 -> 2025-01-01 | F7: to: | G7: =+'Perf. Form 1'!G6:H6 -> 2025-12-31
A9: Energy Source | D9: Energy Usage | F9: Unit | G9: Specific Usage (KWh/tonne incinerated
A10: Electricity Produced | D10: =+'Operational Data'!G27 -> 260720.8893 | F10: MWh | G10: =+'Operational Data'!H27 -> 704.6472433
A11: Electricity Imported | D11: =+'Operational Data'!G29 -> 98 | F11: MWh | G11: =+'Operational Data'!H29 -> 0.2648634332
A12: Electricity Exported | D12: =+'Operational Data'!G28 -> 229099 | F12: MWh | G12: =+'Operational Data'!H28 -> 619.1831396
A13: Diesel (Burner fuel + White Diesel) | D13: =('Operational Data'!G49+'Operational Data'!G50)/1000 -> 465.18845 | F13: m3
A14: Steam/hot water exported | D14: =+'Operational Data'!G31 -> 0 | F14: GWh | G14: =+'Operational Data'!H31 -> -
A18: Operator’s comments :
A29: Signed: | G29: Date: | H29: ='Perf. Form 1'!$H$56 -> 2025-01-05

Sheet Permit Compliance
A1: =+'Cover Page'!$B$29 -> Annual Performance Report 2025 | E1: =+'Cover Page'!$B$33 -> Ardley Energy Recovery Facility
A3: Summary of Permit Compliance
A5: Compliance with permit limits for continuously monitored pollutants
A7: The plant met its emission limits as shown in the table below:
A8: Substance | C8: Percentage time compliant during operationNote 1 | L8: Notes:
C9: Half-hourly limit | F9: Daily limit | L9: Note 1: Please report to 2 decimal places, i.e. xx.xx% Note 2: Please enter into this table any permit non-compliances that the EA has given a CCS score for. Please also enter any other non-compliances which you have notified to the EA (e.g. ELV exceedances) but which have not yet been assessed by the EA. There is no need to enter any notifications which were subsequently assessed by the EA not to be permit breaches. Note 3: Please enter information here (rather than just referencing the notifications that were sent to the EA) including where relevant the incineration line reference, pollutant and value of the measured result for any ELV exceedances.
A10: Particulates | C10: 1 | F10: 1
A11: Oxides of nitrogen | C11: 1 | F11: 1
A12: Sulphur dioxide | C12: 0.9999 | F12: 1
A13: Carbon monoxide | C13: 100.00% 95% of 10-min averages | F13: 1
A14: Total organic carbon | C14: 1 | F14: 1
A15: Hydrogen chloride | C15: 1 | F15: 1
A16: Ammonia | C16: 1 | F16: 1
A19: Summary of non-compliances under the permit Note 2
A20: Date | B20: Summary of non-compliance Note 3 | D20: Reason | G20: Measures taken to prevent reoccurrence | H20: CCS score if applicable*
H21: Impact | I21: Root cause
A22: 2025-01-30 | B22: Two exceedances on Line 1 of the SO2 half hourly limit of 200 mg/m3: 12:30 to 12:59 - 222.21 mg/m3 13:00 to 13:29 - 259.45 mg/m3 | D22: Non-compliant waste in a skip, directly delivered (not processed as per agreement) | G22: All directly delivered loads from supplier stopped. Regular inspections of processing facility. | H22: 0.1 | I22: 0
A23: 2025-04-01 | B23: Line 1 heavy metals result of 0.555 mg/m3 against the limit of 0.3 mg/m3 during biannual stack testing. | D23: Shower cleaning sequence operated during run 3 of the sampling | G23: Line 1 heavy metals were re-sampled on 4th June | H23: 4 | I23: 0
A24: 2025-07-02 | B24: Line 2 duty and standby loss of CEMS data from 17:30 to 23:29. Readings since recovered. | D24: Loose solenoid on standby analyser and 'Transmit to CDAS' signal disabled following CEMS service. | G24: Sign-off between technician and operator following CEMS maintenance | H24: 0 | I24: 0
A25: 2025-07-10 | B25: Loss of CEMS data for line 1 from 06:00 to 07:30 and line 2 from 07:00 to 08:30. | D25: Loss of Nitrogen gas during daily calibration | G25: Nitrogen bottle pressure checks on midnight shift walk | H25: 0.1 | I25: 0
A26: 2025-10-10 | B26: Line 1 TOC half-hour average of 30.80 mg/m3 from 10:30-10:59 during an emergency shutdown | D26: Emergency shutdown required to repair expansion joint following a gas cylinder explosion. TOC exceedance caused due to abnormal shutdown conditions froim air ingess. | G26: Emergency shutdown criteria assessed. The repairs to the expansion joint and feed chute were completed | H26: NA | I26: NA
A27: *If the Environment Agency (EA) has given a Compliance Classification Scheme (CCS) score due to a permit non-compliance it should be entered here (CCS4 = No impact; CCS3 = Minor impact; CCS2 = Significant impact; CCS1 = Major impact). If the EA has not yet assessed a non-compliance which you have notified to them, these columns should be left blank. Enter N/A if no score was given for the root cause.
A29: Summary of any complaints received and actions to taken to resolve them.
A30: Date | B30: Summary of complaint [including Line/Reference] | E30: Reason (including whether substantiated by the operator or the EA) | H30: Measures taken to prevent reoccurrence
B31: None

Sheet Improvements
A1: =+'Cover Page'!$B$29 -> Annual Performance Report 2025 | E1: =+'Cover Page'!$B$33 -> Ardley Energy Recovery Facility
A3: Summary of Plant Improvements
A5: Summary of any efficiency improvements that have been completed within the year.
A6: Energy efficient improvements completed in 2025 included replacing streetlights to LED lights on a motion sensor. A survey was completed on the air comressor systyem to identify system air leaks. These were rectified to reduce compressor load
A13: Summary of any permit improvement conditions that have been completed within the year and the resulting environmental benefits.
A14: No permit improvement conditions have been completed in 2025.
A20: Summary of any changes to the plant or operating techniques which required a variation to the permit and a summary of the resulting environmental impact.
A21: EPR/UP3005LJ/V005 variation issued on 24/10/2025, The variation authorises: 1. The move from 100 %ile to 97%ile short-term emission limit for Total Organic Carbon, from 20 mg/m3 to 10 mg/m3. The changes allows for unavoidable short-term spikes in TOC emissions where the level could be above 20 mg/m3 for a short period of time. 2. The removal of the limit for Lead and all monitoring requirements for the tankered water discharge as they were incorrectly added to the permit during the 2023 permit review. 3. The addition of the waste code 18 01 09 - medicines other than those mentioned in 18 01 08.
A31: Summary of any other improvements made to the plant or planned to be made and a summary of the resulting environmental benefits.
A32: None

Sheet Public Liasion
A1: =+'Cover Page'!$B$29 -> Annual Performance Report 2025 | E1: =+'Cover Page'!$B$33 -> Ardley Energy Recovery Facility
A3: Details of Public & Stakeholder Liaison
A5: Summary of events held during the reporting year.
A6: Date | C6: Description
A7: 2025-02-06 | C7: Public Liaison Meeting for councillors and residents of Middleton Stoney, Ardley & Fewcott, and Bucknell
A9: 2025-06-12
A11: 2025-09-25
A16: List of events planned for next year
A17: Date | C17: Description
A18: Quarterly | C18: Public Liaison Meeting for councillors and residents of Middleton Stoney, Ardley & Fewcott, and Bucknell
A20: Multiple | C20: Site visits by numerous schools and local community groups.
A29: If you wish to be involved in the public liaison programme, please contact Jessica Baker-Pike, 01869 876 345.

Sheet CO2 N2O
A1: =+'Cover Page'!$B$29 -> Annual Performance Report 2025 | C1: =+'Cover Page'!$B$33 -> Ardley Energy Recovery Facility
A3: Carbon dioxide emissions and biogenic content of waste inputs | F3: Notes:
A5: Carbon dioxide emissions (all types of plant)
B6: Annual mass of carbon dioxide released | C6: tonnes | D6: =184767.7+183658.47 -> 368426.17
B7: Annual mass of carbon dioxide released per tonne of waste burned | C7: t CO2 / t waste | D7: =D6/'Operational Data'!G24 -> 0.995741023 | F7: Note 1: All permits require operators to continuously monitor CO2 to EN14181 and flow to BS EN 16911-2 (unless otherwise agreed in writing). Operators must therefore use the results from these instruments to calculate their annual CO2 emissions. Where an operator does not have a flow meter calibrated to BS EN 16911-2, the averaged flow measurement from that year's periodic monitoring can be used instead. If the plant does not have calibrated CO2 CEMS, a suitably justified emissions factor can be used.
B8: Annual mass of carbon dioxide released per MWh of energy exported | C8: t CO2 / MWh export | D8: =D6/'Operational Data'!G28 -> 1.608152676
B9: Description of how annual carbon dioxide mass emission has been calculated. See Note 1 | C9: Data obtained from CEMS. CO2 is measured using the Envea MIR-FT, which is fully calibrated in accordance with EN14181. The stack flow is measured using the SF400 (in accordance with EN16911-2).
A10: Nitrous oxide emissions (only plants which use ammonia or urea to abate NOx emissions)
B11: Annual mass emissions of nitrous oxide | C11: tonnes N2O | D11: 24362.78725
B12: Description of how annual nitrous oxide mass emission has been calculated See Note 2 | C12: Data obtained from CEMS. N2O is measured using the Envea MIR-FT, which is fully calibrated in accordance with EN14181. The stack flow is measured using the SF400 (in accordance with EN16911-2). | F12: Note 2: All permits require operators to continuously monitor N2O to EN14181 and flow to BS EN 16911-2, unless otherwise agreed in writing. Operators must therefore use the results from these instruments to calculate their annual N2O emissions. Where an operator does not have a flow meter calibrated to BS EN 16911-2, the averaged flow measurement from periodic monitoring can be used instead. If the plant does not have calibrated N2O CEMS, data from periodic monitoring or a suitably justified emissions factor can be used instead.
A13: Total annual carbon dioxide + nitrous oxide emissions. See Note 3. | C13: tonnes CO2e | D13: =D11*265 -> 6456138.621 | F13: Note 3: Total annual carbon dioxide and nitrous oxide emissions reported as carbon dioxide equivalent where 1 tonne nitrous oxide is equivalent to 265 tonnes carbon dioxide.
A14: Biogenic CO2 emissions (See Note 4) | F14: Note 4: Only plants combusting residual municipal waste, refuse derived fuel or solid recovered fuel need complete this section.
B15: Percentage of total carbon dioxide emissions arising from biogenic waste | C15: % | D15: 0.62867
B16: No. of measurements undertaken | C16: Number | D16: 10
B17: Description of how percentage biogenic carbon dioxide emissions have been measured or calculated. See Note 5 | C17: C14 analysis via installed Amesa-B sampling system. Cartridges are submitted to Beta-Analytic (ISO 17025 accredited laboratory) to determine the CO2 biogenic ratio | F17: Note 5: The results from C14 sampling should be used if this is carried out at the plant (either via an installed sampler or from spot samples). Otherwise, as an approximation (and in lieu of any more accurate metrics which may be developed in future), the measured or estimated biogenic fraction by net calorific value (see Note 6) can be assumed to be the same as the biogenic CO2 fraction of the total CO2 emissions from the plant.
A18: Biogenic fraction of waste feedstock (See Note 4)
B19: Yearly average biogenic percentage of the waste by net calorific value (NCV) | C19: % | D19: 0.557
B20: Description of how biogenic percentage (by NCV) has been calculated or estimated. See Note 6 | C20: Waste sampling data Annual Waste sample undergoes LEC Analysis based on Bomb calorimetry test methods BS EN 15440:2011 and covered by UKAS accreditation for SRF & RD | F20: Note 6: If C14 sampling is carried out at the plant, the methodology set out in the embedded document entitled "Renewable Energy Association Energy Content of Fuels - Description of Method" embedded below can be used to calculate the biogenic percentage by net calorific value. Otherwise, data from waste sampling or BIOMA software can be used; or if none of these are available, an estimated figure with justification or a figure assumed on the basis of up-to-date industry data can be used.
B21: Yearly average biogenic percentage of the waste by mass | C21: % | D21: 0.604
B22: If waste sampling undertaken, no. of samples used to ascertain average biogenic percentages above | C22: Number | D22: 1
B23: Description of how biogenic percentage (by mass) has been calculated or estimated. See Note 7 | C23: Waste sampling data Annual Waste sample undergoes LEC Analysis based on Bomb calorimetry test methods BS EN 15440:2011 and covered by UKAS accreditation for SRF & RD | F23: Note 7: Where available, data from waste sampling should be used; otherwise, an estimated figure with justification can be used, or a figure assumed on the basis of up-to-date industry data.
B25: Comments:

Sheet Residues
A1: =+'Cover Page'!$B$29 -> Annual Performance Report 2025 | E1: =+'Cover Page'!$B$33 -> Ardley Energy Recovery Facility
A3: Summary of Residue Handling for the reporting year
A5: All IBA produced on site (including the metal content) is conveyed to the Fortis IBA facility, based within the footprint of Ardley ERF, for reprocessing. They remove and recycle the ferrous and non-ferrous metals and then create IBAA (Incinerator Bottom Ash Aggregate) from the remaining material. The Aggregates are used in various construction and highways projects. The IBA testing in 2025 indicates it is non-hazardous. APCR is collected by direct transfer from the APCR site silo into tankers by Grundons, the APCR is then transported to one of three reprocessing plants or for landfill disposal. APCR to the O.C.O Technology Ltd (formally Carbon8) site at Brandon (EPR/JP3332FK), Avonmouth (EPR/HP3638WW), or Leeds (EPR/TP3737YG) is taken through an accelerated carbonation technology. These carbonated wastes are blended with binders and fillers and pelletised to form an aggregate. The majority of APCr is send to OCO Technology in Avonmouth. The APCR sent to Grundon APCR plant at Wingmoor Farm landfill site, Gloucestershire (EPR/NP3831ST) is mixed with water before it is transferred to a hazardous waste cell in the landfill. | K5: Include in here a summary of residue handling regimes and destinations
A18: Residue Quality Monitoring Requirements
A20: Summary of monitoring undertaken and compliance
A21: IBA undergoes quarterly sampling as required by permit condition 3.5.1c and table 4.4 including TOC (separate lines), dioxins & furans and metals. TOC has a limit of <3%.
A23: 24 samples of IBA are taken each year (including the 4 permit compliance samples) to undergo basic hazard analysis as required by the ESA protocol
A25: APCr is sampled quarterly as per permit condition 3.5.1c and table 4.5. Permit Condition 3.5.1(c) and Table S4.5 require Viridor to undertake residue quality monitoring at quarterly intervals for both bottom ash and air pollution control residues. Figures reported in the quarterly residues 1 report submissions, detail the analysis undertaken during the review period. No schedule notifications were submitted to the Environment Agency for this review period regarding residue quality.
A28: Commentary on any specific events
A29: Date & Event | C29: Description
C30: None
A42: Residue Quality Monitoring Results
A43: Parameter (unit) | C43: Limit* | D43: Normal Operation
D44: Bottom ash | F44: APC Residues
A45: Loss on Ignition (average %) | C45: <5% | D45: 3.5
A46: Total Organic Carbon (average %) | C46: <3% | D46: 0.7
A47: No. of Assessments Undertaken | C47: --- | D47: 4 Permit compliance samples 20 ESA hazard assessment | F47: 4 Permit compliance samples
A48: No. of Hazardous Results | C48: --- | D48: 0
A49: * The permit will specify a limit of either 5% loss on ignition or 3% total organic carbon. If both are measured anyway, please enter the results here, even where the limit does not apply.
A51: Comments :

Sheet Water
A1: =+'Cover Page'!$B$29 -> Annual Performance Report 2025 | E1: =+'Cover Page'!$B$33 -> Ardley Energy Recovery Facility
A3: Emissions to Water
A5: Summary of monitoring undertaken and compliance
A6: Permit Condition 3.6.1(a) and Table S3.2 requires Viridor to ensure sample point W1 is free of oil and grease. Sample point W1 has remained free of oil and grease. No Permit limit exceedances were recorded for W1 during the review period for emissions to water.
A8: Permit condition 3.6.1 and table S3.3 requires Viridor to monitor sample point S1 (Leachate from bottom ash treatment). See parameters and results in table below. Leachate is removed from site by road tanker to water treatment facilities.
A13: Commentary on any specific events
A14: Date & Event | C14: Description
A15: 2025-10-24 | C15: Permit variation V005 authorised the removal of the emission limit for Lead and all monitoring requirements for monitoring point S1 (tankered water discharge). The results shown in the table below include monitoring results from 1st January to 24th October 2025.
A17: 2025-02-24 | C17: No sample taken in February due to the tank being emptied to allow for maintenance works on the leachate system
A20: Emissions to Water / Sewer
A21: Parameter | D21: Monitoring Frequency | F21: Limit | G21: Target | H21: Max. | I21: Average
A22: W1 - Oil & Grease | D22: Not set | F22: No oil/grease
A23: S1 - Total Organic Carbon | D23: Monthly | F23: No limit | H23: 74.1 | I23: 35.7
A24: S1 - Total Suspended Solids (mg/l) | D24: Monthly | F24: No limit | H24: 77 | I24: 38.7
A25: S1 - Lead (mg/l) | D25: Monthly | F25: 0.06 mg/L | H25: 0.054 | I25: 0.025
A26: S1 - Ammonium Nitrogen (mg/l) | D26: Monthly | F26: No limit | H26: 8.5 | I26: 3.8
A27: S1 - Chloride (mg/l) | D27: Monthly | F27: No limit | H27: 2640 | I27: 1884
A28: S1 - Sulphate (mg/l) | D28: Monthly | F28: No limit | H28: 875 | I28: 636
A29: S1 - Dioxins & Furans (ug/L) | D29: Biannually | F29: No limit | H29: 0.000089 0.000110 | I29: Dioxins - 0.000051 Furans - 0.000058

Sheet Air (periodic)
A1: =+'Cover Page'!$B$29 -> Annual Performance Report 2025 | E1: =+'Cover Page'!$B$33 -> Ardley Energy Recovery Facility
A3: Emissions to Air (periodically monitored)
A5: Summary of monitoring undertaken, standards used and compliance | K5: Notes:
A6: Biannual 1 Line 1 - 24th - 28th Feb 2025 (line 2 offline) Biannual 1 Line 2 - 2nd - 6th June 2025 Biannual 2 Line 1 - 14th - 17th July 2025 (line 2 offline) Biannual 2 Line 2 - 1st - 2nd October and 10th - 11th December 2025 | K6: Template may require adjustment for any bespoke monitoring requirements of permit - please also check that all default ELV values, reference periods and the stated oxygen reference value match those for your plant, and edit if necessary!
P8: Line 1 H1 | Q8: Line 1 H2 | R8: Line 1 Average | T8: Line 2 H1 | U8: Line 2 H2 | V8: Line 2 Average
A9: Results of emissions to air that are periodically monitored - oxygen reference 11% | P9: 0.03 | Q9: 0.08 | R9: =AVERAGE(P9:Q9) -> 0.055 | T9: 0.03 | U9: 0.028 | V9: =AVERAGE(T9:U9) -> 0.029
A10: Substance | C10: Ref. Period | D10: Emission Limit Value | F10: Average | K10: User to add additional tables as necessary, depending on whether quarterly or bi-annual reporting is required for the compliance year | P10: 0.001 | Q10: 0.002 | R10: =AVERAGE(P10:Q10) -> 0.0015 | T10: 0.001 | U10: 0.0015 | V10: =AVERAGE(T10:U10) -> 0.00125
F11: A1 | G11: A2 | H11: A3 | I11: A4 | J11: A5 | P11: 0.004 | Q11: 0.003 | R11: 0.0035 | T11: 0.0044 | U11: 0.0029 | V11: 0.00365
A12: Hydrogen fluoride | C12: 1 hr | D12: 1 mg/m3 | F12: 0.055 | G12: 0.029 | P12: 0.0664 | Q12: 0.025 | R12: 0.0457 | T12: 0.1576 | U12: 0.054 | V12: 0.1058
A13: Cd and Tl and their compounds | C13: 0.5-8hrs | D13: 0.02 mg/m3 | F13: 0.0015 | G13: 0.00125 | P13: 0.0071 | Q13: 0.0025 | R13: 0.0048 | T13: 0.0062 | U13: 0.0059 | V13: 0.00605
A14: Hg and its compounds | C14: 0.5-8hrs | D14: 0.02 mg/m3 | F14: 0.0035 | G14: 0.00365 | P14: 0.000278 | Q14: 0.000163 | R14: 0.0002205 | T14: 0.000354 | U14: 0.00028 | V14: 0.000317
A15: Sb, As, Pb, Cr, Co, Cu, Mn, Ni, V and their compounds | C15: 0.5-8hrs | D15: 0.3 mg/m3 | F15: 0.0457 | G15: 0.1058 | P15: 1.5e-05 | Q15: 8e-06 | R15: 1.15e-05 | T15: 1.6e-05 | U15: 1.4e-05 | V15: 1.5e-05
A16: Dioxins & Furans (I-TEQ) | C16: 6-8hrs | D16: 0.06 ng/m3 | F16: 0.0048 | G16: 0.00605 | P16: 0.001074 | Q16: 0.000531 | R16: 0.0008025 | T16: 0.000691 | U16: 0.00077 | V16: 0.0007305
A17: PCBs (WHO-TEQ Humans / Mammals) | C17: 6-8hrs | D17: None set ng/m3 | F17: 0.0002205 | G17: 0.000317 | P17: 0.0069 | Q17: 0.0024 | R17: 0.00465 | T17: 0.0061 | U17: 0.00047 | V17: 0.003285
A18: PCBs (WHO-TEQ Fish) | C18: 6-8hrs | D18: None set ng/m3 | F18: 1.15e-05 | G18: 1.5e-05 | P18: 0.0068 | Q18: 0.0026 | R18: 0.0047 | T18: 0.0058 | U18: 0.00022 | V18: 0.00301
A19: PCBs (WHO-TEQ Birds) | C19: 6-8hrs | D19: None set ng/m3 | F19: 0.0008025 | G19: 0.0007305 | P19: 0.0155 | Q19: 0.0055 | R19: 0.0105 | T19: 0.006 | U19: 0.0035 | V19: 0.00475
A20: Dioxins & Furans (WHO-TEQ Humans / Mammals) | C20: 6-8hrs | D20: None set ng/m3 | F20: 0.00465 | G20: 0.003285 | P20: 0.001 | Q20: 0.0026 | R20: 0.0018 | T20: 0.0054 | U20: 0.0044 | V20: 0.0049
A21: Dioxins & Furans (WHO-TEQ Fish) | C21: 6-8hrs | D21: None set ng/m3 | F21: 0.0047 | G21: 0.00301 | P21: 0.00159 | R21: =AVERAGE(P21:Q21) -> 0.00159 | U21: 0.0012 | V21: =AVERAGE(T21:U21) -> 0.0012
A22: Dioxins & Furans (WHO-TEQ Birds) | C22: 6-8hrs | D22: None set ng/m3 | F22: 0.0105 | G22: 0.00475 | P22: 0.00255 | R22: 0.00255 | U22: 0.0012 | V22: 0.0012
A23: Polybrominated dibenzo-dioxins and furans | C23: 6-8hrs | D23: None set ng/m3 | F23: 0.0018 | G23: 0.0049 | P23: 0.00159 | R23: 0.00159 | U23: 0.0012 | V23: 0.0012
A24: Anthanthrene | C24: 6-8hrs | D24: None set µg/m3 | F24: 0.00159 | G24: 0.0012 | P24: 0.00159 | R24: 0.00159 | U24: 0.0012 | V24: 0.0012
A25: Benzo(a)anthracene | C25: 6-8hrs | D25: None set µg/m3 | F25: 0.00255 | G25: 0.0012 | P25: 0.00567 | R25: 0.00567 | U25: 0.0012 | V25: 0.0012
A26: Benzo(a)pyrene | C26: 6-8hrs | D26: None set µg/m3 | F26: 0.00159 | G26: 0.0012 | P26: 0.00159 | R26: 0.00159 | U26: 0.0012 | V26: 0.0012
A27: Benzo(b)fluoranthene | C27: 6-8hrs | D27: None set µg/m3 | F27: 0.00159 | G27: 0.0012 | P27: 0.0016 | R27: 0.0016 | U27: 0.0012 | V27: 0.0012
A28: Benzo(b)naptho(2,1-d) thiophene | C28: 6-8hrs | D28: None set µg/m3 | F28: 0.00567 | G28: 0.0012 | P28: 0.00159 | R28: 0.00159 | U28: 0.0012 | V28: 0.0012
A29: Benzo(c)phenanthrene | C29: 6-8hrs | D29: None set µg/m3 | F29: 0.00159 | G29: 0.0012 | P29: 0.00159 | R29: 0.00159 | U29: 0.0012 | V29: 0.0012
A30: Benzo(ghi)perylene | C30: 6-8hrs | D30: None set µg/m3 | F30: 0.0016 | G30: 0.0012 | P30: 0.00304 | R30: 0.00304 | U30: 0.0012 | V30: 0.0012
A31: Benzo(k)fluoranthene | C31: 6-8hrs | D31: None set µg/m3 | F31: 0.00159 | G31: 0.0012 | P31: 0.00159 | R31: 0.00159 | U31: 0.0012 | V31: 0.0012
A32: Cholanthrene | C32: 6-8hrs | D32: None set µg/m3 | F32: 0.00159 | G32: 0.0012 | P32: 0.00159 | R32: 0.00159 | U32: 0.0012 | V32: 0.0012
A33: Chrysene | C33: 6-8hrs | D33: None set µg/m3 | F33: 0.00304 | G33: 0.0012 | P33: 0.00159 | R33: 0.00159 | U33: 0.0012 | V33: 0.0012
A34: Cyclopenta(cd)pyrene | C34: 6-8hrs | D34: None set µg/m3 | F34: 0.00159 | G34: 0.0012 | P34: 0.02533 | R34: 0.02533 | U34: 0.0147 | V34: 0.0147
A35: Dibenzo(ai)pyrene | C35: 6-8hrs | D35: None set µg/m3 | F35: 0.00159 | G35: 0.0012 | P35: 0.00159 | R35: 0.00159 | U35: 0.0012 | V35: 0.0012
A36: Dibenzo(ah)anthracene | C36: 6-8hrs | D36: None set µg/m3 | F36: 0.00159 | G36: 0.0012 | P36: 0.61814 | R36: 0.61814 | U36: 0.2686 | V36: 0.2686
A37: Fluoranthene | C37: 6-8hrs | D37: None set µg/m3 | F37: 0.02533 | G37: 0.0147
A38: Indeno(123-cd) pyrene | C38: 6-8hrs | D38: None set µg/m3 | F38: 0.00159 | G38: 0.0012
A39: Naphthalene | C39: 6-8hrs | D39: None set µg/m3 | F39: 0.61814 | G39: 0.2686
A40: Comments :
A41: Line 1 heavy metal exceedance of 0.55 mg/m3 against a limit of 0.3 mg/m3, tested on 28/2/2025. Retested on 4/6/2025, with a result of 0.066 mg/m3

Sheet Air (CEMS)
A1: =+'Cover Page'!$B$29 -> Annual Performance Report 2025 | I1: =+'Cover Page'!$B$33 -> Ardley Energy Recovery Facility
A3: Emissions to Air (continuously monitored)
N4: Notes:
A5: Summary of monitoring undertaken, standards used and compliance | N5: Template may require adjustment for any bespoke monitoring requirements of permit
N6: Please check that all default ELV values match those for your plant and edit if necessary!
N7: Report to 1 decimal place
A11: Results of emissions to air that are continuously monitored (maximum and average values for each line) - oxygen reference 11%
A12: Substance | B12: Reference Period | C12: Emission Limit Value | D12: A1 | F12: A2 | H12: A3 | J12: A4 | L12: A5
D13: Max. | E13: Avg. | F13: Max. | G13: Avg. | H13: Max. | I13: Avg. | J13: Max. | K13: Avg. | L13: Max. | M13: Avg.
A14: Oxides of nitrogen | B14: Daily mean | C14: 180 mg/m3 | D14: =NOx!O19 -> 174.98 | E14: =NOx!N19 -> 169.9375 | F14: =NOx!O34 -> 175.13 | G14: =NOx!N34 -> 169.8258333
B15: ½ hourly mean | C15: 400 mg/m3 | D15: =NOx!M19 -> 317.2 | E15: =NOx!L19 -> 169.9658333 | F15: =NOx!M34 -> 312.9 | G15: =NOx!L34 -> 169.75
A16: Particulates | B16: Daily mean | C16: 5 mg/m3 | D16: =Particulates!O19 -> 3.83 | E16: =Particulates!N19 -> 0.6325 | F16: =Particulates!O34 -> 0.41 | G16: =Particulates!N34 -> 0.2625
B17: ½ hourly mean | C17: 30 mg/m3 | D17: =Particulates!M19 -> 20.3 | E17: =Particulates!L19 -> 0.6416666667 | F17: =Particulates!M34 -> 3.7 | G17: =Particulates!L34 -> 0.2666666667
A18: Total Organic Carbon | B18: Daily mean | C18: 10 mg/m3 | D18: =TOC!O19 -> 1.85 | E18: =TOC!N19 -> 0.5316666667 | F18: =TOC!O34 -> 0.61 | G18: =TOC!N34 -> 0.09833333333
B19: ½ hourly mean | C19: 20 mg/m3 | D19: =TOC!M19 -> 30.8 | E19: =TOC!L19 -> 0.5333333333 | F19: =TOC!M34 -> 10 | G19: =TOC!L34 -> 0.075
A20: Hydrogen chloride | B20: Daily mean | C20: 8 mg/m3 | D20: =HCl!O19 -> 6.69 | E20: =HCl!N19 -> 3.780833333 | F20: =HCl!O34 -> 7.39 | G20: =HCl!N34 -> 4.801666667
B21: ½ hourly mean | C21: 60 mg/m3 | D21: =HCl!M19 -> 34.4 | E21: =HCl!L19 -> 3.766666667 | F21: =HCl!M34 -> 30.3 | G21: =HCl!L34 -> 4.783333333
A22: Sulphur dioxide | B22: Daily mean | C22: 40 mg/m3 | D22: ='SO2'!O19 -> 37.68 | E22: ='SO2'!N19 -> 24.76416667 | F22: ='SO2'!O34 -> 36.31 | G22: ='SO2'!N34 -> 21.57083333
B23: ½ hourly mean | C23: 200 mg/m3 | D23: ='SO2'!M19 -> 259.5 | E23: ='SO2'!L19 -> 24.75833333 | F23: ='SO2'!M34 -> 137.5 | G23: ='SO2'!L34 -> 21.59166667
A24: Carbon monoxide | B24: Daily mean | C24: 50 mg/m3 | D24: ='CO 95% 10 min'!Q22 -> 14.8 | E24: ='CO 95% 10 min'!P22 -> 4.684166667 | F24: ='CO 95% 10 min'!Q37 -> 11.93 | G24: ='CO 95% 10 min'!P37 -> 1.55
B25: 95%ile 10-min avg * | C25: 150 mg/m3 * | D25: ='CO 95% 10 min'!M22 -> 33.91666667 | E25: ='CO 95% 10 min'!N22 -> 4.916666667 | F25: ='CO 95% 10 min'!M37 -> 15.16666667 | G25: ='CO 95% 10 min'!N37 -> 1.416666667
A26: Ammonia | B26: Daily mean | C26: 15 mg/m3 | D26: ='NH3'!O19 -> 3.13 | E26: ='NH3'!N19 -> 1.19 | F26: ='NH3'!O34 -> 2.05 | G26: ='NH3'!N34 -> 0.4666666667
A27: * = delete as appropriate, depending on whether your plant has half-hourly or 10-min CO ELVs
A28: Comments :

Sheet HCl
A1: =+'Cover Page'!$B$29 -> Annual Performance Report 2025 | E1: =+'Cover Page'!$B$33 -> Ardley Energy Recovery Facility
A3: Monitoring of Hydrogen Chloride emissions | D3: Whole Installation | G3: See Notes in Cell Q3 | J3: =+A3 -> Monitoring of Hydrogen Chloride emissions | N3: Per Combustion Line | Q3: Notes:
Q4: User to add logic to complete Whole installation, Table A5:G18. From the data in Per Combustion Line, Table J6:O79, subject to No. of lines installed
A5: =+'Cover Page'!C39 -> 2025 | B5: 1/2 Hourly Reference Periods | E5: Daily Reference Periods
A6: mg/Nm3 | B6: 1/2 hourly HCl ELV | C6: Monthly mean of half-hourly averages | D6: Highest half- hourly average | E6: Daily HCl ELV | F6: Monthly mean of daily averages | G6: Highest daily average | J6: =+A5 -> 2025 | K6: mg/Nm3 | L6: Monthly mean of half-hourly averages | M6: Highest half- hourly average | N6: Monthly mean of daily averages | O6: Highest daily average
A7: Jan | B7: 60 | C7: =AVERAGE(L7,L22) -> 5.25 | D7: =MAX(M7,M22) -> 34.4 | E7: 8 | F7: =AVERAGE(N7,N22) -> 5.275 | G7: =MAX(O7,O22) -> 7.05 | J7: A1 | K7: Jan | L7: 4.9 | M7: 34.4 | N7: 4.92 | O7: 6.69
A8: Feb | B8: 60 | C8: =AVERAGE(L8,L23) -> 4.5 | D8: =MAX(M8,M23) -> 33.4 | E8: 8 | F8: =AVERAGE(N8,N23) -> 4.585 | G8: =MAX(O8,O23) -> 7.39 | K8: Feb | L8: 4.2 | M8: 33.4 | N8: 4.24 | O8: 5.92
A9: Mar | B9: 60 | C9: 5 | D9: 26.4 | E9: 8 | F9: 5.015 | G9: 7.2 | K9: Mar | L9: 4.6 | M9: 15.2 | N9: 4.58 | O9: 6 | Q9: Whole Installation table A5:G18:
A10: Apr | B10: 60 | C10: 4.25 | D10: 20.5 | E10: 8 | F10: 4.26 | G10: 6.99 | K10: Apr | L10: 3.6 | M10: 19 | N10: 3.62 | O10: 5.6 | Q10: Mean: for 1/2 hourly and daily periods calculate mean of values across all operational combustion lines for the month
A11: May | B11: 60 | C11: 4.45 | D11: 30.3 | E11: 8 | F11: 4.47 | G11: 6.95 | K11: May | L11: 4 | M11: 15.3 | N11: 4.04 | O11: 5.27
A12: Jun | B12: 60 | C12: 4.9 | D12: 20.2 | E12: 8 | F12: 4.95 | G12: 7.33 | K12: Jun | L12: 4.7 | M12: 17 | N12: 4.75 | O12: 6.16
A13: Jul | B13: 60 | C13: 4.65 | D13: 27.9 | E13: 8 | F13: 4.67 | G13: 7.18 | K13: Jul | L13: 4.4 | M13: 27.9 | N13: 4.39 | O13: 6.01 | Q13: Maximum: for 1/2 hourly and daily periods use the highest value across all operational combustion lines for the month
A14: Aug | B14: 60 | C14: 3.5 | D14: 19.6 | E14: 8 | F14: 3.49 | G14: 6.35 | K14: Aug | L14: 3 | M14: 11.4 | N14: 2.98 | O14: 6.25
A15: Sep | B15: 60 | C15: 3.9 | D15: 26.6 | E15: 8 | F15: 3.905 | G15: 6.26 | K15: Sep | L15: 3.5 | M15: 13 | N15: 3.54 | O15: 5.34
A16: Oct | B16: 60 | C16: 3.6 | D16: 18.1 | E16: 8 | F16: 3.61 | G16: 5.92 | K16: Oct | L16: 2.8 | M16: 12.2 | N16: 2.85 | O16: 4.7
A17: Nov | B17: 60 | C17: 3.45 | D17: 13.6 | E17: 8 | F17: 3.4 | G17: 6.28 | K17: Nov | L17: 2.3 | M17: 9.9 | N17: 2.22 | O17: 4.19
A18: Dec | B18: 60 | C18: 3.85 | D18: 15.7 | E18: 8 | F18: 3.865 | G18: 5.88 | K18: Dec | L18: 3.2 | M18: 9.4 | N18: 3.24 | O18: 4.94
K19: Annual | L19: =AVERAGE(L7:L18) -> 3.766666667 | M19: =MAX(M7:M18) -> 34.4 | N19: =AVERAGE(N7:N18) -> 3.780833333 | O19: =MAX(O7:O18) -> 6.69
J21: =+A5 -> 2025 | K21: mg/Nm3 | L21: Monthly mean of half-hourly averages | M21: Highest half- hourly average | N21: Monthly mean of daily averages | O21: Highest daily average
J22: A2 | K22: Jan | L22: 5.6 | M22: 23.2 | N22: 5.63 | O22: 7.05
K23: Feb | L23: 4.8 | M23: 20.6 | N23: 4.93 | O23: 7.39
K24: Mar | L24: 5.4 | M24: 26.4 | N24: 5.45 | O24: 7.2
K25: Apr | L25: 4.9 | M25: 20.5 | N25: 4.9 | O25: 6.99
K26: May | L26: 4.9 | M26: 30.3 | N26: 4.9 | O26: 6.95
K27: Jun | L27: 5.1 | M27: 20.2 | N27: 5.15 | O27: 7.33
K28: Jul | L28: 4.9 | M28: 27 | N28: 4.95 | O28: 7.18
K29: Aug | L29: 4 | M29: 19.6 | N29: 4 | O29: 6.35
K30: Sep | L30: 4.3 | M30: 26.6 | N30: 4.27 | O30: 6.26
K31: Oct | L31: 4.4 | M31: 18.1 | N31: 4.37 | O31: 5.92
K32: Nov | L32: 4.6 | M32: 13.6 | N32: 4.58 | O32: 6.28
K33: Dec | L33: 4.5 | M33: 15.7 | N33: 4.49 | O33: 5.88
K34: Annual | L34: =AVERAGE(L22:L33) -> 4.783333333 | M34: =MAX(M22:M33) -> 30.3 | N34: =AVERAGE(N22:N33) -> 4.801666667 | O34: =MAX(O22:O33) -> 7.39
J36: =+A5 -> 2025 | K36: mg/Nm3 | L36: Monthly mean of half-hourly averages | M36: Highest half- hourly average | N36: Monthly mean of daily averages | O36: Highest daily average
J37: A3 | K37: Jan
K38: Feb
K39: Mar
K40: Apr
K41: May
K42: Jun
K43: Jul
K44: Aug
K45: Sep
K46: Oct
K47: Nov
A48: Comments : | K48: Dec
K49: Annual | L49: =AVERAGE(L37:L48) ->  | M49: =MAX(M37:M48) -> 0 | N49: =AVERAGE(N37:N48) ->  | O49: =MAX(O37:O48) -> 0
J51: =+A5 -> 2025 | K51: mg/Nm3 | L51: Monthly mean of half-hourly averages | M51: Highest half- hourly average | N51: Monthly mean of daily averages | O51: Highest daily average
J52: A4 | K52: Jan
K53: Feb
K54: Mar
K55: Apr
K56: May
K57: Jun
K58: Jul
K59: Aug
K60: Sep
K61: Oct
K62: Nov
K63: Dec
K64: Annual | L64: =AVERAGE(L52:L63) ->  | M64: =MAX(M52:M63) -> 0 | N64: =AVERAGE(N52:N63) ->  | O64: =MAX(O52:O63) -> 0
J66: =+A5 -> 2025 | K66: mg/Nm3 | L66: Monthly mean of half-hourly averages | M66: Highest half- hourly average | N66: Monthly mean of daily averages | O66: Highest daily average
J67: A5 | K67: Jan
K68: Feb
K69: Mar
K70: Apr
K71: May
K72: Jun
K73: Jul
K74: Aug
K75: Sep
K76: Oct
K77: Nov
K78: Dec
K79: Annual | L79: =AVERAGE(L67:L78) ->  | M79: =MAX(M67:M78) -> 0 | N79: =AVERAGE(N67:N78) ->  | O79: =MAX(O67:O78) -> 0

Sheet SO2
A1: =+'Cover Page'!$B$29 -> Annual Performance Report 2025 | E1: =+'Cover Page'!$B$33 -> Ardley Energy Recovery Facility
A3: Monitoring of Sulphur dioxide emissions | D3: Whole Installation | G3: See Notes in Cell Q3 | J3: =+A3 -> Monitoring of Sulphur dioxide emissions | N3: Per Combustion Line | Q3: Notes:
Q4: User to add logic to complete Whole installation, Table A5:G18. From the data in Per Combustion Line, Table J6:O79, subject to No. of lines installed
A5: =+'Cover Page'!C39 -> 2025 | B5: 1/2 Hourly Reference Periods | E5: Daily Reference Periods
A6: mg/Nm3 | B6: 1/2 hourly SO2 ELV | C6: Monthly mean of half-hourly averages | D6: Highest half- hourly average | E6: Daily SO2 ELV | F6: Monthly mean of daily averages | G6: Highest daily average | J6: =+A5 -> 2025 | K6: mg/Nm3 | L6: Monthly mean of half-hourly averages | M6: Highest half- hourly average | N6: Monthly mean of daily averages | O6: Highest daily average
A7: Jan | B7: 200 | C7: =AVERAGE(L7,L22) -> 19 | D7: =MAX(M7,M22) -> 259.5 | E7: 40 | F7: =AVERAGE(N7,N22) -> 19.02 | G7: =MAX(O7,O22) -> 33.93 | J7: A1 | K7: Jan | L7: 20.9 | M7: 259.5 | N7: 20.9 | O7: 33.93
A8: Feb | B8: 200 | C8: =AVERAGE(L8,L23) -> 28.45 | D8: =MAX(M8,M23) -> 119.9 | E8: 40 | F8: =AVERAGE(N8,N23) -> 28.475 | G8: =MAX(O8,O23) -> 35.41 | K8: Feb | L8: 28.2 | M8: 100.3 | N8: 28.23 | O8: 35.41
A9: Mar | B9: 200 | C9: 26 | D9: 117.3 | E9: 40 | F9: 25.995 | G9: 35.71 | K9: Mar | L9: 27.8 | M9: 117.3 | N9: 27.83 | O9: 35.71 | Q9: Whole Installation table A5:G18:
A10: Apr | B10: 200 | C10: 27 | D10: 154.8 | E10: 40 | F10: 27.01 | G10: 37.68 | K10: Apr | L10: 30.9 | M10: 154.8 | N10: 30.89 | O10: 37.68 | Q10: Mean: for 1/2 hourly and daily periods calculate mean of values across all operational combustion lines for the month
A11: May | B11: 200 | C11: 25.05 | D11: 152.1 | E11: 40 | F11: 25.05 | G11: 33.86 | K11: May | L11: 28.8 | M11: 152.1 | N11: 28.8 | O11: 33.86
A12: Jun | B12: 200 | C12: 24.05 | D12: 97.3 | E12: 40 | F12: 24.075 | G12: 34.6 | K12: Jun | L12: 28.9 | M12: 97.3 | N12: 28.91 | O12: 34.6
A13: Jul | B13: 200 | C13: 23.1 | D13: 122.8 | E13: 40 | F13: 23.075 | G13: 36.34 | K13: Jul | L13: 22.1 | M13: 122.8 | N13: 22.09 | O13: 36.34 | Q13: Maximum: for 1/2 hourly and daily periods use the highest value across all operational combustion lines for the month
A14: Aug | B14: 200 | C14: 14.4 | D14: 59.1 | E14: 40 | F14: 14.39 | G14: 25.22 | K14: Aug | L14: 11.9 | M14: 59.1 | N14: 11.9 | O14: 23.33
A15: Sep | B15: 200 | C15: 20.45 | D15: 103.4 | E15: 40 | F15: 20.41 | G15: 32.64 | K15: Sep | L15: 21.8 | M15: 103.4 | N15: 21.78 | O15: 32.64
A16: Oct | B16: 200 | C16: 21.85 | D16: 123.6 | E16: 40 | F16: 22.055 | G16: 33.73 | K16: Oct | L16: 24.8 | M16: 123.6 | N16: 25.16 | O16: 33.73
A17: Nov | B17: 200 | C17: 24.5 | D17: 94.2 | E17: 40 | F17: 24.23 | G17: 32.9 | K17: Nov | L17: 24.1 | M17: 94.2 | N17: 23.74 | O17: 32.9
A18: Dec | B18: 200 | C18: 24.25 | D18: 108.5 | E18: 40 | F18: 24.225 | G18: 33.9 | K18: Dec | L18: 26.9 | M18: 108.5 | N18: 26.94 | O18: 33.9
K19: Annual | L19: =AVERAGE(L7:L18) -> 24.75833333 | M19: =MAX(M7:M18) -> 259.5 | N19: =AVERAGE(N7:N18) -> 24.76416667 | O19: =MAX(O7:O18) -> 37.68
J21: =+A5 -> 2025 | K21: mg/Nm3 | L21: Monthly mean of half-hourly averages | M21: Highest half- hourly average | N21: Monthly mean of daily averages | O21: Highest daily average
J22: A2 | K22: Jan | L22: 17.1 | M22: 137.5 | N22: 17.14 | O22: 33.62
K23: Feb | L23: 28.7 | M23: 119.9 | N23: 28.72 | O23: 35.32
K24: Mar | L24: 24.2 | M24: 96.6 | N24: 24.16 | O24: 34.42
K25: Apr | L25: 23.1 | M25: 78.8 | N25: 23.13 | O25: 36.31
K26: May | L26: 21.3 | M26: 70.7 | N26: 21.3 | O26: 32.67
K27: Jun | L27: 19.2 | M27: 86.4 | N27: 19.24 | O27: 27.93
K28: Jul | L28: 24.1 | M28: 101.3 | N28: 24.06 | O28: 32.96
K29: Aug | L29: 16.9 | M29: 55.1 | N29: 16.88 | O29: 25.22
K30: Sep | L30: 19.1 | M30: 67.8 | N30: 19.04 | O30: 29.16
K31: Oct | L31: 18.9 | M31: 76.4 | N31: 18.95 | O31: 29.43
K32: Nov | L32: 24.9 | M32: 89.4 | N32: 24.72 | O32: 32.44
K33: Dec | L33: 21.6 | M33: 91.7 | N33: 21.51 | O33: 31.86
K34: Annual | L34: =AVERAGE(L22:L33) -> 21.59166667 | M34: =MAX(M22:M33) -> 137.5 | N34: =AVERAGE(N22:N33) -> 21.57083333 | O34: =MAX(O22:O33) -> 36.31
J36: =+A5 -> 2025 | K36: mg/Nm3 | L36: Monthly mean of half-hourly averages | M36: Highest half- hourly average | N36: Monthly mean of daily averages | O36: Highest daily average
J37: A3 | K37: Jan
K38: Feb
K39: Mar
K40: Apr
K41: May
K42: Jun
K43: Jul
K44: Aug
K45: Sep
K46: Oct
K47: Nov
A48: Comments : | K48: Dec
K49: Annual | L49: =AVERAGE(L37:L48) ->  | M49: =MAX(M37:M48) -> 0 | N49: =AVERAGE(N37:N48) ->  | O49: =MAX(O37:O48) -> 0
J51: =+A5 -> 2025 | K51: mg/Nm3 | L51: Monthly mean of half-hourly averages | M51: Highest half- hourly average | N51: Monthly mean of daily averages | O51: Highest daily average
J52: A4 | K52: Jan
K53: Feb
K54: Mar
K55: Apr
K56: May
K57: Jun
K58: Jul
K59: Aug
K60: Sep
K61: Oct
K62: Nov
K63: Dec
K64: Annual | L64: =AVERAGE(L52:L63) ->  | M64: =MAX(M52:M63) -> 0 | N64: =AVERAGE(N52:N63) ->  | O64: =MAX(O52:O63) -> 0
J66: =+A5 -> 2025 | K66: mg/Nm3 | L66: Monthly mean of half-hourly averages | M66: Highest half- hourly average | N66: Monthly mean of daily averages | O66: Highest daily average
J67: A5 | K67: Jan
K68: Feb
K69: Mar
K70: Apr
K71: May
K72: Jun
K73: Jul
K74: Aug
K75: Sep
K76: Oct
K77: Nov
K78: Dec
K79: Annual | L79: =AVERAGE(L67:L78) ->  | M79: =MAX(M67:M78) -> 0 | N79: =AVERAGE(N67:N78) ->  | O79: =MAX(O67:O78) -> 0

Sheet NOx
A1: =+'Cover Page'!$B$29 -> Annual Performance Report 2025 | E1: =+'Cover Page'!$B$33 -> Ardley Energy Recovery Facility
A3: Monitoring of Oxides of Nitrogen emissions | D3: Whole Installation | G3: See Notes in Cell Q3 | J3: =+A3 -> Monitoring of Oxides of Nitrogen emissions | N3: Per Combustion Line | Q3: Notes:
Q4: User to add logic to complete Whole installation, Table A5:G18. From the data in Per Combustion Line, Table J6:O79, subject to No. of lines installed
A5: =+'Cover Page'!C39 -> 2025 | B5: 1/2 Hourly Reference Periods | E5: Daily Reference Periods
A6: mg/Nm3 | B6: 1/2 hourly NOx ELV | C6: Monthly mean of half-hourly averages | D6: Highest half- hourly average | E6: Daily NOx ELV | F6: Monthly mean of daily averages | G6: Highest daily average | J6: =+A5 -> 2025 | K6: mg/Nm3 | L6: Monthly mean of half-hourly averages | M6: Highest half- hourly average | N6: Monthly mean of daily averages | O6: Highest daily average
A7: Jan | B7: 400 | C7: =AVERAGE(L7,L22) -> 169.9 | D7: =MAX(M7,M22) -> 221.6 | E7: 180 | F7: =AVERAGE(N7,N22) -> 169.935 | G7: =MAX(O7,O22) -> 170.77 | J7: A1 | K7: Jan | L7: 169.9 | M7: 221.6 | N7: 169.94 | O7: 170.77
A8: Feb | B8: 400 | C8: =AVERAGE(L8,L23) -> 169.25 | D8: =MAX(M8,M23) -> 294 | E8: 180 | F8: =AVERAGE(N8,N23) -> 169.67 | G8: =MAX(O8,O23) -> 171.47 | K8: Feb | L8: 169.9 | M8: 239.8 | N8: 169.92 | O8: 170.65
A9: Mar | B9: 400 | C9: 169.95 | D9: 317.2 | E9: 180 | F9: 169.92 | G9: 171.06 | K9: Mar | L9: 169.9 | M9: 317.2 | N9: 169.87 | O9: 171.06 | Q9: Whole Installation table A5:G18:
A10: Apr | B10: 400 | C10: 169.95 | D10: 245.8 | E10: 180 | F10: 169.97 | G10: 170.35 | K10: Apr | L10: 170 | M10: 220.7 | N10: 169.99 | O10: 170.21 | Q10: Mean: for 1/2 hourly and daily periods calculate mean of values across all operational combustion lines for the month
A11: May | B11: 400 | C11: 169.95 | D11: 203 | E11: 180 | F11: 169.92 | G11: 170.54 | K11: May | L11: 170 | M11: 203 | N11: 169.96 | O11: 170.23
A12: Jun | B12: 400 | C12: 169.85 | D12: 209.9 | E12: 180 | F12: 169.84 | G12: 170.56 | K12: Jun | L12: 170 | M12: 209.9 | N12: 169.99 | O12: 170.56
A13: Jul | B13: 400 | C13: 169.95 | D13: 234.2 | E13: 180 | F13: 169.925 | G13: 170.27 | K13: Jul | L13: 170 | M13: 200.4 | N13: 169.96 | O13: 170.27 | Q13: Maximum: for 1/2 hourly and daily periods use the highest value across all operational combustion lines for the month
A14: Aug | B14: 400 | C14: 169.7 | D14: 282.9 | E14: 180 | F14: 169.73 | G14: 171.1 | K14: Aug | L14: 169.9 | M14: 203.6 | N14: 169.94 | O14: 170.7
A15: Sep | B15: 400 | C15: 170.045 | D15: 291.6 | E15: 180 | F15: 170.005 | G15: 173.16 | K15: Sep | L15: 169.89 | M15: 228.2 | N15: 169.8 | O15: 171.58
A16: Oct | B16: 400 | C16: 169.8 | D16: 277.4 | E16: 180 | F16: 169.825 | G16: 173.36 | K16: Oct | L16: 169.8 | M16: 208.3 | N16: 169.81 | O16: 172.1
A17: Nov | B17: 400 | C17: 169.95 | D17: 312.9 | E17: 180 | F17: 169.85 | G17: 175.13 | K17: Nov | L17: 170.2 | M17: 264.2 | N17: 169.98 | O17: 171.69
A18: Dec | B18: 400 | C18: 170 | D18: 282.8 | E18: 180 | F18: 169.99 | G18: 174.98 | K18: Dec | L18: 170.1 | M18: 282.8 | N18: 170.09 | O18: 174.98
K19: Annual | L19: =AVERAGE(L7:L18) -> 169.9658333 | M19: =MAX(M7:M18) -> 317.2 | N19: =AVERAGE(N7:N18) -> 169.9375 | O19: =MAX(O7:O18) -> 174.98
J21: =+A5 -> 2025 | K21: mg/Nm3 | L21: Monthly mean of half-hourly averages | M21: Highest half- hourly average | N21: Monthly mean of daily averages | O21: Highest daily average
J22: A2 | K22: Jan | L22: 169.9 | M22: 211.2 | N22: 169.93 | O22: 170.5
K23: Feb | L23: 168.6 | M23: 294 | N23: 169.42 | O23: 171.47
K24: Mar | L24: 170 | M24: 261.7 | N24: 169.97 | O24: 171.04
K25: Apr | L25: 169.9 | M25: 245.8 | N25: 169.95 | O25: 170.35
K26: May | L26: 169.9 | M26: 196.9 | N26: 169.88 | O26: 170.54
K27: Jun | L27: 169.7 | M27: 197.9 | N27: 169.69 | O27: 170.37
K28: Jul | L28: 169.9 | M28: 234.2 | N28: 169.89 | O28: 170.25
K29: Aug | L29: 169.5 | M29: 282.9 | N29: 169.52 | O29: 171.1
K30: Sep | L30: 170.2 | M30: 291.6 | N30: 170.21 | O30: 173.16
K31: Oct | L31: 169.8 | M31: 277.4 | N31: 169.84 | O31: 173.36
K32: Nov | L32: 169.7 | M32: 312.9 | N32: 169.72 | O32: 175.13
K33: Dec | L33: 169.9 | M33: 266.9 | N33: 169.89 | O33: 171.41
K34: Annual | L34: =AVERAGE(L22:L33) -> 169.75 | M34: =MAX(M22:M33) -> 312.9 | N34: =AVERAGE(N22:N33) -> 169.8258333 | O34: =MAX(O22:O33) -> 175.13
J36: =+A5 -> 2025 | K36: mg/Nm3 | L36: Monthly mean of half-hourly averages | M36: Highest half- hourly average | N36: Monthly mean of daily averages | O36: Highest daily average
J37: A3 | K37: Jan
K38: Feb
K39: Mar
K40: Apr
K41: May
K42: Jun
K43: Jul
K44: Aug
K45: Sep
K46: Oct
K47: Nov
A48: Comments : | K48: Dec
K49: Annual | L49: =AVERAGE(L37:L48) ->  | M49: =MAX(M37:M48) -> 0 | N49: =AVERAGE(N37:N48) ->  | O49: =MAX(O37:O48) -> 0
J51: =+A5 -> 2025 | K51: mg/Nm3 | L51: Monthly mean of half-hourly averages | M51: Highest half- hourly average | N51: Monthly mean of daily averages | O51: Highest daily average
J52: A4 | K52: Jan
K53: Feb
K54: Mar
K55: Apr
K56: May
K57: Jun
K58: Jul
K59: Aug
K60: Sep
K61: Oct
K62: Nov
K63: Dec
K64: Annual | L64: =AVERAGE(L52:L63) ->  | M64: =MAX(M52:M63) -> 0 | N64: =AVERAGE(N52:N63) ->  | O64: =MAX(O52:O63) -> 0
J66: =+A5 -> 2025 | K66: mg/Nm3 | L66: Monthly mean of half-hourly averages | M66: Highest half- hourly average | N66: Monthly mean of daily averages | O66: Highest daily average
J67: A5 | K67: Jan
K68: Feb
K69: Mar
K70: Apr
K71: May
K72: Jun
K73: Jul
K74: Aug
K75: Sep
K76: Oct
K77: Nov
K78: Dec
K79: Annual | L79: =AVERAGE(L67:L78) ->  | M79: =MAX(M67:M78) -> 0 | N79: =AVERAGE(N67:N78) ->  | O79: =MAX(O67:O78) -> 0

Sheet TOC
A1: =+'Cover Page'!$B$29 -> Annual Performance Report 2025 | E1: =+'Cover Page'!$B$33 -> Ardley Energy Recovery Facility
A3: Monitoring of Total organic carbon emissions | D3: Whole Installation | G3: See Notes in Cell Q3 | J3: =+A3 -> Monitoring of Total organic carbon emissions | N3: Per Combustion Line | Q3: Notes:
Q4: User to add logic to complete Whole installation, Table A5:G18. From the data in Per Combustion Line, Table J6:O79, subject to No. of lines installed
A5: =+'Cover Page'!C39 -> 2025 | B5: 1/2 Hourly Reference Periods | E5: Daily Reference Periods
A6: mg/Nm3 | B6: 1/2 hourly TOC ELV | C6: Monthly mean of half-hourly averages | D6: Highest half- hourly average | E6: Daily TOC ELV | F6: Monthly mean of daily averages | G6: Highest daily average | J6: =+A5 -> 2025 | K6: mg/Nm3 | L6: Monthly mean of half-hourly averages | M6: Highest half- hourly average | N6: Monthly mean of daily averages | O6: Highest daily average
A7: Jan | B7: 20 | C7: =AVERAGE(L7,L22) -> 0.15 | D7: =MAX(M7,M22) -> 7.4 | E7: 10 | F7: =AVERAGE(N7,N22) -> 0.15 | G7: =MAX(O7,O22) -> 0.52 | J7: A1 | K7: Jan | L7: 0.3 | M7: 7.4 | N7: 0.27 | O7: 0.52
A8: Feb | B8: 20 | C8: =AVERAGE(L8,L23) -> 0.15 | D8: =MAX(M8,M23) -> 5.7 | E8: 10 | F8: =AVERAGE(N8,N23) -> 0.13 | G8: =MAX(O8,O23) -> 0.41 | K8: Feb | L8: 0.3 | M8: 5.7 | N8: 0.26 | O8: 0.41
A9: Mar | B9: 20 | C9: 0.4 | D9: 7.2 | E9: 10 | F9: 0.4 | G9: 1.19 | K9: Mar | L9: 0.6 | M9: 7.2 | N9: 0.64 | O9: 1.19 | Q9: Whole Installation table A5:G18:
A10: Apr | B10: 20 | C10: 0.2 | D10: 4.5 | E10: 10 | F10: 0.245 | G10: 1.45 | K10: Apr | L10: 0.4 | M10: 4.5 | N10: 0.44 | O10: 1.45 | Q10: Mean: for 1/2 hourly and daily periods calculate mean of values across all operational combustion lines for the month
A11: May | B11: 20 | C11: 0.4 | D11: 7.6 | E11: 10 | F11: 0.425 | G11: 1.17 | K11: May | L11: 0.8 | M11: 7.6 | N11: 0.82 | O11: 1.17
A12: Jun | B12: 20 | C12: 0.35 | D12: 7.9 | E12: 10 | F12: 0.375 | G12: 0.98 | K12: Jun | L12: 0.7 | M12: 7.9 | N12: 0.72 | O12: 0.98
A13: Jul | B13: 20 | C13: 0.35 | D13: 6.2 | E13: 10 | F13: 0.43 | G13: 1.11 | K13: Jul | L13: 0.7 | M13: 6.2 | N13: 0.68 | O13: 1.11 | Q13: Maximum: for 1/2 hourly and daily periods use the highest value across all operational combustion lines for the month
A14: Aug | B14: 20 | C14: 0.5 | D14: 12.2 | E14: 10 | F14: 0.495 | G14: 1.2 | K14: Aug | L14: 0.8 | M14: 12.2 | N14: 0.8 | O14: 1.2
A15: Sep | B15: 20 | C15: 0.45 | D15: 10 | E15: 10 | F15: 0.47 | G15: 1.01 | K15: Sep | L15: 0.7 | M15: 7.8 | N15: 0.72 | O15: 1.01
A16: Oct | B16: 20 | C16: 0.35 | D16: 30.8 | E16: 10 | F16: 0.35 | G16: 1.85 | K16: Oct | L16: 0.5 | M16: 30.8 | N16: 0.49 | O16: 1.85
A17: Nov | B17: 20 | C17: 0.2 | D17: 7.5 | E17: 10 | F17: 0.175 | G17: 0.8 | K17: Nov | L17: 0.3 | M17: 7.5 | N17: 0.28 | O17: 0.8
A18: Dec | B18: 20 | C18: 0.15 | D18: 16.8 | E18: 10 | F18: 0.135 | G18: 0.65 | K18: Dec | L18: 0.3 | M18: 16.8 | N18: 0.26 | O18: 0.65
K19: Annual | L19: =AVERAGE(L7:L18) -> 0.5333333333 | M19: =MAX(M7:M18) -> 30.8 | N19: =AVERAGE(N7:N18) -> 0.5316666667 | O19: =MAX(O7:O18) -> 1.85
J21: =+A5 -> 2025 | K21: mg/Nm3 | L21: Monthly mean of half-hourly averages | M21: Highest half- hourly average | N21: Monthly mean of daily averages | O21: Highest daily average
J22: A2 | K22: Jan | L22: 0 | M22: 3.1 | N22: 0.03 | O22: 0.12
K23: Feb | L23: 0 | M23: 3.6 | N23: 0 | O23: 0.15
K24: Mar | L24: 0.2 | M24: 3.5 | N24: 0.16 | O24: 0.43
K25: Apr | L25: 0 | M25: 2.8 | N25: 0.05 | O25: 0.2
K26: May | L26: 0 | M26: 2.7 | N26: 0.03 | O26: 0.13
K27: Jun | L27: 0 | M27: 3.2 | N27: 0.03 | O27: 0.1
K28: Jul | L28: 0 | M28: 2.8 | N28: 0.18 | O28: 0.39
K29: Aug | L29: 0.2 | M29: 2.9 | N29: 0.19 | O29: 0.37
K30: Sep | L30: 0.2 | M30: 10 | N30: 0.22 | O30: 0.53
K31: Oct | L31: 0.2 | M31: 4.2 | N31: 0.21 | O31: 0.61
K32: Nov | L32: 0.1 | M32: 4.3 | N32: 0.07 | O32: 0.43
K33: Dec | L33: 0 | M33: 1.7 | N33: 0.01 | O33: 0.15
K34: Annual | L34: =AVERAGE(L22:L33) -> 0.075 | M34: =MAX(M22:M33) -> 10 | N34: =AVERAGE(N22:N33) -> 0.09833333333 | O34: =MAX(O22:O33) -> 0.61
J36: =+A5 -> 2025 | K36: mg/Nm3 | L36: Monthly mean of half-hourly averages | M36: Highest half- hourly average | N36: Monthly mean of daily averages | O36: Highest daily average
J37: A3 | K37: Jan
K38: Feb
K39: Mar
K40: Apr
K41: May
K42: Jun
K43: Jul
K44: Aug
K45: Sep
K46: Oct
K47: Nov
A48: Comments : | K48: Dec
K49: Annual | L49: =AVERAGE(L37:L48) ->  | M49: =MAX(M37:M48) -> 0 | N49: =AVERAGE(N37:N48) ->  | O49: =MAX(O37:O48) -> 0
J51: =+A5 -> 2025 | K51: mg/Nm3 | L51: Monthly mean of half-hourly averages | M51: Highest half- hourly average | N51: Monthly mean of daily averages | O51: Highest daily average
J52: A4 | K52: Jan
K53: Feb
K54: Mar
K55: Apr
K56: May
K57: Jun
K58: Jul
K59: Aug
K60: Sep
K61: Oct
K62: Nov
K63: Dec
K64: Annual | L64: =AVERAGE(L52:L63) ->  | M64: =MAX(M52:M63) -> 0 | N64: =AVERAGE(N52:N63) ->  | O64: =MAX(O52:O63) -> 0
J66: =+A5 -> 2025 | K66: mg/Nm3 | L66: Monthly mean of half-hourly averages | M66: Highest half- hourly average | N66: Monthly mean of daily averages | O66: Highest daily average
J67: A5 | K67: Jan
K68: Feb
K69: Mar
K70: Apr
K71: May
K72: Jun
K73: Jul
K74: Aug
K75: Sep
K76: Oct
K77: Nov
K78: Dec
K79: Annual | L79: =AVERAGE(L67:L78) ->  | M79: =MAX(M67:M78) -> 0 | N79: =AVERAGE(N67:N78) ->  | O79: =MAX(O67:O78) -> 0

Sheet Particulates
A1: =+'Cover Page'!$B$29 -> Annual Performance Report 2025 | E1: =+'Cover Page'!$B$33 -> Ardley Energy Recovery Facility
A3: Monitoring of Particulate matter emissions | D3: Whole Installation | G3: See Notes in Cell Q3 | J3: =+A3 -> Monitoring of Particulate matter emissions | N3: Per Combustion Line | Q3: Notes:
A5: =+'Cover Page'!C39 -> 2025 | B5: 1/2 Hourly Reference Periods | E5: Daily Reference Periods | Q5: User to add logic to complete Whole installation, Table A5:G18. From the data in Per Combustion Line, Table J6:O79, subject to No. of lines installed
A6: mg/Nm3 | B6: 1/2 hourly PM ELV | C6: Monthly mean of half-hourly averages | D6: Highest half- hourly average | E6: Daily PM ELV | F6: Monthly mean of daily averages | G6: Highest daily average | J6: =+A5 -> 2025 | K6: mg/Nm3 | L6: Monthly mean of half-hourly averages | M6: Highest half- hourly average | N6: Monthly mean of daily averages | O6: Highest daily average
A7: Jan | B7: 30 | C7: =AVERAGE(L7,L22) -> 0.7 | D7: =MAX(M7,M22) -> 7.8 | E7: 5 | F7: =AVERAGE(N7,N22) -> 0.675 | G7: =MAX(O7,O22) -> 1.71 | J7: A1 | K7: Jan | L7: 1 | M7: 7.8 | N7: 0.99 | O7: 1.71
A8: Feb | B8: 30 | C8: =AVERAGE(L8,L23) -> 0.55 | D8: =MAX(M8,M23) -> 10.3 | E8: 5 | F8: =AVERAGE(N8,N23) -> 0.54 | G8: =MAX(O8,O23) -> 1.09 | K8: Feb | L8: 0.7 | M8: 10.3 | N8: 0.72 | O8: 1.09
A9: Mar | B9: 30 | C9: 0.5 | D9: 1.3 | E9: 5 | F9: 0.495 | G9: 0.88 | K9: Mar | L9: 0.7 | M9: 1.3 | N9: 0.66 | O9: 0.88
A10: Apr | B10: 30 | C10: 0.45 | D10: 0.8 | E10: 5 | F10: 0.46 | G10: 0.68 | K10: Apr | L10: 0.6 | M10: 0.8 | N10: 0.58 | O10: 0.68 | Q10: Whole Installation table A5:G18:
A11: May | B11: 30 | C11: 0.4 | D11: 0.8 | E11: 5 | F11: 0.45 | G11: 0.65 | K11: May | L11: 0.5 | M11: 0.8 | N11: 0.55 | O11: 0.65 | Q11: Mean: for 1/2 hourly and daily periods calculate mean of values across all operational combustion lines for the month
A12: Jun | B12: 30 | C12: 0.45 | D12: 0.8 | E12: 5 | F12: 0.455 | G12: 0.58 | K12: Jun | L12: 0.5 | M12: 0.8 | N12: 0.55 | O12: 0.58
A13: Jul | B13: 30 | C13: 0.4 | D13: 3.7 | E13: 5 | F13: 0.39 | G13: 0.63 | K13: Jul | L13: 0.5 | M13: 1.2 | N13: 0.48 | O13: 0.63
A14: Aug | B14: 30 | C14: 0.4 | D14: 4 | E14: 5 | F14: 0.385 | G14: 1.09 | K14: Aug | L14: 0.5 | M14: 4 | N14: 0.49 | O14: 1.09 | Q14: Maximum: for 1/2 hourly and daily periods use the highest value across all operational combustion lines for the month
A15: Sep | B15: 30 | C15: 0.5 | D15: 1.6 | E15: 5 | F15: 0.46 | G15: 1.15 | K15: Sep | L15: 0.8 | M15: 1.6 | N15: 0.76 | O15: 1.15
A16: Oct | B16: 30 | C16: 0.55 | D16: 20.3 | E16: 5 | F16: 0.51 | G16: 3.83 | K16: Oct | L16: 1 | M16: 20.3 | N16: 0.92 | O16: 3.83
A17: Nov | B17: 30 | C17: 0.25 | D17: 0.7 | E17: 5 | F17: 0.275 | G17: 0.48 | K17: Nov | L17: 0.4 | M17: 0.7 | N17: 0.44 | O17: 0.48
A18: Dec | B18: 30 | C18: 0.3 | D18: 0.8 | E18: 5 | F18: 0.275 | G18: 0.55 | K18: Dec | L18: 0.5 | M18: 0.8 | N18: 0.45 | O18: 0.55
K19: Annual | L19: =AVERAGE(L7:L18) -> 0.6416666667 | M19: =MAX(M7:M18) -> 20.3 | N19: =AVERAGE(N7:N18) -> 0.6325 | O19: =MAX(O7:O18) -> 3.83
J21: =+A5 -> 2025 | K21: mg/Nm3 | L21: Monthly mean of half-hourly averages | M21: Highest half- hourly average | N21: Monthly mean of daily averages | O21: Highest daily average
J22: A2 | K22: Jan | L22: 0.4 | M22: 0.5 | N22: 0.36 | O22: 0.38
K23: Feb | L23: 0.4 | M23: 0.6 | N23: 0.36 | O23: 0.39
K24: Mar | L24: 0.3 | M24: 0.6 | N24: 0.33 | O24: 0.35
K25: Apr | L25: 0.3 | M25: 0.7 | N25: 0.34 | O25: 0.38
K26: May | L26: 0.3 | M26: 0.4 | N26: 0.35 | O26: 0.36
K27: Jun | L27: 0.4 | M27: 0.5 | N27: 0.36 | O27: 0.39
K28: Jul | L28: 0.3 | M28: 3.7 | N28: 0.3 | O28: 0.41
K29: Aug | L29: 0.3 | M29: 0.4 | N29: 0.28 | O29: 0.29
K30: Sep | L30: 0.2 | M30: 0.7 | N30: 0.16 | O30: 0.33
K31: Oct | L31: 0.1 | M31: 0.2 | N31: 0.1 | O31: 0.11
K32: Nov | L32: 0.1 | M32: 0.6 | N32: 0.11 | O32: 0.38
K33: Dec | L33: 0.1 | M33: 0.1 | N33: 0.1 | O33: 0.1
K34: Annual | L34: =AVERAGE(L22:L33) -> 0.2666666667 | M34: =MAX(M22:M33) -> 3.7 | N34: =AVERAGE(N22:N33) -> 0.2625 | O34: =MAX(O22:O33) -> 0.41
J36: =+A5 -> 2025 | K36: mg/Nm3 | L36: Monthly mean of half-hourly averages | M36: Highest half- hourly average | N36: Monthly mean of daily averages | O36: Highest daily average
J37: A3 | K37: Jan
K38: Feb
K39: Mar
K40: Apr
K41: May
K42: Jun
K43: Jul
K44: Aug
K45: Sep
K46: Oct
K47: Nov
A48: Comments : | K48: Dec
K49: Annual | L49: =AVERAGE(L37:L48) ->  | M49: =MAX(M37:M48) -> 0 | N49: =AVERAGE(N37:N48) ->  | O49: =MAX(O37:O48) -> 0
J51: =+A5 -> 2025 | K51: mg/Nm3 | L51: Monthly mean of half-hourly averages | M51: Highest half- hourly average | N51: Monthly mean of daily averages | O51: Highest daily average
J52: A4 | K52: Jan
K53: Feb
K54: Mar
K55: Apr
K56: May
K57: Jun
K58: Jul
K59: Aug
K60: Sep
K61: Oct
K62: Nov
K63: Dec
K64: Annual | L64: =AVERAGE(L52:L63) ->  | M64: =MAX(M52:M63) -> 0 | N64: =AVERAGE(N52:N63) ->  | O64: =MAX(O52:O63) -> 0
J66: =+A5 -> 2025 | K66: mg/Nm3 | L66: Monthly mean of half-hourly averages | M66: Highest half- hourly average | N66: Monthly mean of daily averages | O66: Highest daily average
J67: A5 | K67: Jan
K68: Feb
K69: Mar
K70: Apr
K71: May
K72: Jun
K73: Jul
K74: Aug
K75: Sep
K76: Oct
K77: Nov
K78: Dec
K79: Annual | L79: =AVERAGE(L67:L78) ->  | M79: =MAX(M67:M78) -> 0 | N79: =AVERAGE(N67:N78) ->  | O79: =MAX(O67:O78) -> 0

Sheet CO 95% 10 min
A1: =+'Cover Page'!$B$29 -> Annual Performance Report 2025 | E1: =+'Cover Page'!$B$33 -> Ardley Energy Recovery Facility
A3: Monitoring of Carbon Monoxide (10-minute avg) | E3: Whole Installation | H3: See Notes in Cell S3 | J3: =+A3 -> Monitoring of Carbon Monoxide (10-minute avg) | O3: Per Combustion Line | Q3: Notes: | S3: Notes:
A5: Please complete this tab for your plant if you have 10-minute average CO ELVs; otherwise, leave it blank and complete the CO 0.5 hourly tab
S7: User to add logic to complete Whole installation, Table A5:H18. From the data in Per Combustion Line, Table K6:Q79, subject to No. of lines installed
A8: =+'Cover Page'!C39 -> 2025 | B8: 10-minute Reference Periods | F8: Daily Reference Periods
A9: mg/Nm3 | B9: 95%ile 10-min avg CO ELV | C9: Highest daily 95%ile 10-min average | D9: Monthly mean of 10-min averages | E9: Highest 10-min average | F9: Daily CO ELV | G9: Monthly mean of daily averages | H9: Highest daily average | K9: =+A8 -> 2025 | L9: mg/Nm3 | M9: Highest daily 95%ile 10-min average | N9: Monthly mean of 10-min averages | O9: Highest 10-min average | P9: Monthly mean of daily averages | Q9: Highest daily average
A10: Jan | B10: 150 | C10: =MAX(M10,M25) -> 22 | D10: =AVERAGE(N10,N25) -> 4.5 | E10: =MAX(O10,O25) -> 365.62 | F10: 50 | G10: =AVERAGE(P10,P25) -> 4.47 | H10: =MAX(Q10,Q25) -> 11.72 | K10: A1 | L10: Jan | M10: 19 | N10: 7 | O10: 365.62 | P10: 7.01 | Q10: 11.72
A11: Feb | B11: =+B10 -> 150 | C11: =MAX(M11,M26) -> 12 | D11: =AVERAGE(N11,N26) -> 4.5 | E11: =MAX(O11,O26) -> 367.8 | F11: =+F10 -> 50 | G11: =AVERAGE(P11,P26) -> 4.44 | H11: =MAX(Q11,Q26) -> 9.34 | L11: Feb | M11: 12 | N11: 7 | O11: 367.8 | P11: 6.82 | Q11: 9.34
A12: Mar | B12: =+B11 -> 150 | C12: 25 | D12: 4 | E12: 423.6 | F12: =+F11 -> 50 | G12: 4.13 | H12: 12.59 | L12: Mar | M12: 25 | N12: 7 | O12: 423.6 | P12: 6.86 | Q12: 12.59 | S12: Whole Installation table A5:H18:
A13: Apr | B13: 150 | C13: 12 | D13: 2 | E13: 432.4 | F13: 50 | G13: 2.165 | H13: 7 | L13: Apr | M13: 11 | N13: 3 | O13: 432.4 | P13: 3.38 | Q13: 7 | S13: Mean: for 10-min and daily periods use average of all operational combustion lines.
A14: May | B14: 150 | C14: 11 | D14: 2 | E14: 331.3 | F14: 50 | G14: 2.27 | H14: 7 | L14: May | M14: 11 | N14: 4 | O14: 331.3 | P14: 4.08 | Q14: 7
A15: Jun | B15: 150 | C15: 11 | D15: 1.5 | E15: 346.7 | F15: 50 | G15: 1.825 | H15: 8 | L15: Jun | M15: 11 | N15: 2 | O15: 346.7 | P15: 2.3 | Q15: 8
A16: Jul | B16: 150 | C16: 28 | D16: 0.5 | E16: 334.16 | F16: 50 | G16: 0.185 | H16: 6.62 | L16: Jul | M16: 28 | N16: 1 | O16: 334.16 | P16: 0.36 | Q16: 6.62 | S16: Maximum: for 10-min and daily periods use the highest of all operational combustion lines in any month.
A17: Aug | B17: 150 | C17: 31 | D17: 1.5 | E17: 396.96 | F17: 50 | G17: 1.305 | H17: 8.77 | L17: Aug | M17: 13 | N17: 2 | O17: 396.96 | P17: 1.56 | Q17: 8.77
A18: Sep | B18: 150 | C18: 38 | D18: 3 | E18: 883.13 | F18: 50 | G18: 3.065 | H18: 11.93 | L18: Sep | M18: 38 | N18: 5 | O18: 498 | P18: 4.88 | Q18: 9.47
A19: Oct | B19: 150 | C19: 25 | D19: 5 | E19: 418.28 | F19: 50 | G19: 5.235 | H19: 11.2 | L19: Oct | M19: 18 | N19: 8 | O19: 211.74 | P19: 8 | Q19: 11.2
A20: Nov | B20: 150 | C20: 201 | D20: 6 | E20: 1945.65 | F20: 50 | G20: 4.73 | H20: 14.8 | L20: Nov | M20: 201 | N20: 8 | O20: 1945.65 | P20: 6.03 | Q20: 14.8
A21: Dec | B21: 150 | C21: 20 | D21: 3.5 | E21: 336.3 | F21: 50 | G21: 3.585 | H21: 7.8 | L21: Dec | M21: 20 | N21: 5 | O21: 336.3 | P21: 4.93 | Q21: 7.8
L22: Annual | M22: =AVERAGE(M10:M21) -> 33.91666667 | N22: =AVERAGE(N10:N21) -> 4.916666667 | O22: =MAX(O10:O21) -> 1945.65 | P22: =AVERAGE(P10:P21) -> 4.684166667 | Q22: =MAX(Q10:Q21) -> 14.8
K24: =+A8 -> 2025 | L24: mg/Nm3 | M24: Highest daily 95%ile 10-min average | N24: Monthly mean of 10-min averages | O24: Highest 10-min average | P24: Monthly mean of daily averages | Q24: Highest daily average
K25: A2 | L25: Jan | M25: 22 | N25: 2 | O25: 208.12 | P25: 1.93 | Q25: 3.55
L26: Feb | M26: 9 | N26: 2 | O26: 199 | P26: 2.06 | Q26: 4.91
L27: Mar | M27: 11 | N27: 1 | O27: 168.3 | P27: 1.4 | Q27: 2.84
L28: Apr | M28: 12 | N28: 1 | O28: 194 | P28: 0.95 | Q28: 3
L29: May | M29: 6 | N29: 0 | O29: 204 | P29: 0.46 | Q29: 3
L30: Jun | M30: 8 | N30: 1 | O30: 163.9 | P30: 1.35 | Q30: 4
L31: Jul | M31: 6 | N31: 0 | O31: 251.94 | P31: 0.01 | Q31: 1.97
L32: Aug | M32: 31 | N32: 1 | O32: 310.7 | P32: 1.05 | Q32: 4.35
L33: Sep | M33: 25 | N33: 1 | O33: 883.13 | P33: 1.25 | Q33: 11.93
L34: Oct | M34: 25 | N34: 2 | O34: 418.28 | P34: 2.47 | Q34: 6.58
L35: Nov | M35: 16 | N35: 4 | O35: 230.38 | P35: 3.43 | Q35: 9
L36: Dec | M36: 11 | N36: 2 | O36: 159.49 | P36: 2.24 | Q36: 4
L37: Annual | M37: =AVERAGE(M25:M36) -> 15.16666667 | N37: =AVERAGE(N25:N36) -> 1.416666667 | O37: =MAX(O25:O36) -> 883.13 | P37: =AVERAGE(P25:P36) -> 1.55 | Q37: =MAX(Q25:Q36) -> 11.93
K39: =+A8 -> 2025 | L39: mg/Nm3 | M39: Highest daily 95%ile 10-min average | N39: Monthly mean of 10-min averages | O39: Highest 10-min average | P39: Monthly mean of daily averages | Q39: Highest daily average
K40: A3 | L40: Jan
L41: Feb
L42: Mar
L43: Apr
L44: May
L45: Jun
L46: Jul
L47: Aug
L48: Sep
L49: Oct
L50: Nov
A51: Comments : | L51: Dec
A52: Environment Agency explanatory note: The 10-minute average ELV is based on the “95th percentile”. In this case this means that 95% of the 10 minute averages in the relevant 24-hour period (i.e. 137) must be below 150 mg/Nm3, and 5% (i.e. 7) are allowed to be any value above 150 mg/Nm3. Whilst we expect operators to minimise CO emissions at all times, it is perfectly acceptable for the value of the maximum 10-minute average to be above 150 mg/Nm3, provided the 95th percentile ELV has been met for that period. | L52: Annual | M52: =AVERAGE(M40:M51) ->  | O52: =MAX(O40:O51) -> 0 | P52: =AVERAGE(P40:P51) ->  | Q52: =MAX(Q40:Q51) -> 0
K54: =+A8 -> 2025 | L54: mg/Nm3 | M54: Highest daily 95%ile 10-min average | N54: Monthly mean of 10-min averages | O54: Highest 10-min average | P54: Monthly mean of daily averages | Q54: Highest daily average
K55: A4 | L55: Jan
L56: Feb
L57: Mar
L58: Apr
L59: May
L60: Jun
L61: Jul
L62: Aug
L63: Sep
L64: Oct
L65: Nov
L66: Dec
L67: Annual | M67: =AVERAGE(M55:M66) ->  | O67: =MAX(O55:O66) -> 0 | P67: =AVERAGE(P55:P66) ->  | Q67: =MAX(Q55:Q66) -> 0
K69: =+A8 -> 2025 | L69: mg/Nm3 | M69: 95%ile 10-min avg maximum | N69: Monthly CO 10-min avg mean | O69: 10-min avg maximum | P69: Monthly daily mean | Q69: Monthly daily maximum
K70: A5 | L70: Jan
L71: Feb
L72: Mar
L73: Apr
L74: May
L75: Jun
L76: Jul
L77: Aug
L78: Sep
L79: Oct
L80: Nov
L81: Dec
L82: Annual | M82: =AVERAGE(M70:M81) ->  | O82: =MAX(O70:O81) -> 0 | P82: =AVERAGE(P70:P81) ->  | Q82: =MAX(Q70:Q81) -> 0

Sheet NH3
A1: =+'Cover Page'!$B$29 -> Annual Performance Report 2025 | E1: =+'Cover Page'!$B$33 -> Ardley Energy Recovery Facility
A3: Monitoring of Ammnonia emissions | D3: Whole Installation | G3: See Notes in Cell Q3 | J3: =+A3 -> Monitoring of Ammnonia emissions | N3: Per Combustion Line | Q3: Notes:
Q4: User to add logic to complete Whole installation, Table A5:G18. From the data in Per Combustion Line, Table J6:O79, subject to No. of lines installed
A5: =+'Cover Page'!C39 -> 2025 | B5: 1/2 Hourly Reference Periods | E5: Daily Reference Periods
A6: mg/Nm3 | B6: 1/2 hourly NH3 ELV | C6: Monthly mean of half-hourly averages | D6: Highest half- hourly average | E6: Daily NH3 ELV | F6: Monthly mean of daily averages | G6: Highest daily average | J6: =+A5 -> 2025 | K6: mg/Nm3 | L6: Monthly mean of half-hourly averages | M6: Highest half- hourly average | N6: Monthly mean of daily averages | O6: Highest daily average
A7: Jan | B7: None | C7: =AVERAGE(L7,L22) -> 0.75 | D7: =MAX(M7,M22) -> 3.4 | E7: 15 | F7: =AVERAGE(N7,N22) -> 0.71 | G7: =MAX(O7,O22) -> 1.71 | J7: A1 | K7: Jan | L7: 1 | M7: 3.4 | N7: 0.95 | O7: 1.71
A8: Feb | B8: =+B7 -> None | C8: =AVERAGE(L8,L23) -> 0.9 | D8: =MAX(M8,M23) -> 28.1 | E8: 15 | F8: =AVERAGE(N8,N23) -> 0.91 | G8: =MAX(O8,O23) -> 2.22 | K8: Feb | L8: 1.2 | M8: 19.4 | N8: 1.23 | O8: 2.22
A9: Mar | B9: =+B8 -> None | C9: 0.75 | D9: 11.9 | E9: 15 | F9: 0.77 | G9: 3.13 | K9: Mar | L9: 1.1 | M9: 11.9 | N9: 1.11 | O9: 3.13 | Q9: Whole Installation table A5:G18:
A10: Apr | B10: None | C10: 0.65 | D10: 2.8 | E10: 15 | F10: 0.66 | G10: 1.44 | K10: Apr | L10: 1 | M10: 2.8 | N10: 1.01 | O10: 1.44 | Q10: Mean: for 1/2 hourly and daily periods calculate mean of values across all operational combustion lines for the month
A11: May | B11: None | C11: 0.6 | D11: 4.3 | E11: 15 | F11: 0.61 | G11: 1.48 | K11: May | L11: 0.9 | M11: 4.3 | N11: 0.92 | O11: 1.48
A12: Jun | B12: None | C12: 0.75 | D12: 3.3 | E12: 15 | F12: 0.755 | G12: 1.71 | K12: Jun | L12: 1.2 | M12: 3.3 | N12: 1.16 | O12: 1.71
A13: Jul | B13: None | C13: 0.8 | D13: 5.5 | E13: 15 | F13: 0.795 | G13: 1.74 | K13: Jul | L13: 1.2 | M13: 3.8 | N13: 1.17 | O13: 1.74 | Q13: Maximum: for 1/2 hourly and daily periods use the highest value across all operational combustion lines for the month
A14: Aug | B14: None | C14: =AVERAGE(L14,L29) -> 0.95 | D14: 4.3 | E14: 15 | F14: 0.945 | G14: 2.09 | K14: Aug | L14: 1.5 | M14: 4.3 | N14: 1.51 | O14: 2.09
A15: Sep | B15: None | C15: =AVERAGE(L15,L30) -> 1.05 | D15: 7.2 | E15: 15 | F15: 1.045 | G15: 2.35 | K15: Sep | L15: 1.6 | M15: 6.7 | N15: 1.56 | O15: 2.35
A16: Oct | B16: None | C16: 0.7 | D16: 10.4 | E16: 15 | F16: 0.7 | G16: 1.24 | K16: Oct | L16: 0.9 | M16: 2.8 | N16: 0.86 | O16: 1.24
A17: Nov | B17: None | C17: 1.1 | D17: 6.2 | E17: 15 | F17: 1.065 | G17: 2.02 | K17: Nov | L17: 1.4 | M17: 5.4 | N17: 1.37 | O17: 1.85
A18: Dec | B18: None | C18: 0.95 | D18: 8.2 | E18: 15 | F18: 0.975 | G18: 2.1 | K18: Dec | L18: 1.4 | M18: 8.2 | N18: 1.43 | O18: 2.1
K19: Annual | L19: =AVERAGE(L7:L18) -> 1.2 | M19: =MAX(M7:M18) -> 19.4 | N19: =AVERAGE(N7:N18) -> 1.19 | O19: =MAX(O7:O18) -> 3.13
J21: =+A5 -> 2025 | K21: mg/Nm3 | L21: Monthly mean of half-hourly averages | M21: Highest half- hourly average | N21: Monthly mean of daily averages | O21: Highest daily average
J22: A2 | K22: Jan | L22: 0.5 | M22: 2.3 | N22: 0.47 | O22: 0.66
K23: Feb | L23: 0.6 | M23: 28.1 | N23: 0.59 | O23: 2.05
K24: Mar | L24: 0.4 | M24: 2.2 | N24: 0.43 | O24: 0.76
K25: Apr | L25: 0.3 | M25: 1.7 | N25: 0.31 | O25: 0.5
K26: May | L26: 0.3 | M26: 2.1 | N26: 0.3 | O26: 0.54
K27: Jun | L27: 0.3 | M27: 1.6 | N27: 0.35 | O27: 0.59
K28: Jul | L28: 0.4 | M28: 5.5 | N28: 0.42 | O28: 0.78
K29: Aug | L29: 0.4 | M29: 2.3 | N29: 0.38 | O29: 0.61
K30: Sep | L30: 0.5 | M30: 7.2 | N30: 0.53 | O30: 1.11
K31: Oct | L31: 0.5 | M31: 10.4 | N31: 0.54 | O31: 1.23
K32: Nov | L32: 0.8 | M32: 6.2 | N32: 0.76 | O32: 2.02
K33: Dec | L33: 0.5 | M33: 2 | N33: 0.52 | O33: 1.14
K34: Annual | L34: =AVERAGE(L22:L33) -> 0.4583333333 | M34: =MAX(M22:M33) -> 28.1 | N34: =AVERAGE(N22:N33) -> 0.4666666667 | O34: =MAX(O22:O33) -> 2.05
J36: =+A5 -> 2025 | K36: mg/Nm3 | L36: Monthly mean of half-hourly averages | M36: Highest half- hourly average | N36: Monthly mean of daily averages | O36: Highest daily average
J37: A3 | K37: Jan
K38: Feb
K39: Mar
K40: Apr
K41: May
K42: Jun
K43: Jul
K44: Aug
K45: Sep
K46: Oct
K47: Nov
A48: Comments : | K48: Dec
A49: An indicated ELV value of zero in the table above means that no ammonia limit is/was set in the permit. | K49: Annual | L49: =AVERAGE(L37:L48) ->  | M49: =MAX(M37:M48) -> 0 | N49: =AVERAGE(N37:N48) ->  | O49: =MAX(O37:O48) -> 0
J51: =+A5 -> 2025 | K51: mg/Nm3 | L51: Monthly mean of half-hourly averages | M51: Highest half- hourly average | N51: Monthly mean of daily averages | O51: Highest daily average
J52: A4 | K52: Jan
K53: Feb
K54: Mar
K55: Apr
K56: May
K57: Jun
K58: Jul
K59: Aug
K60: Sep
K61: Oct
K62: Nov
K63: Dec
K64: Annual | L64: =AVERAGE(L52:L63) ->  | M64: =MAX(M52:M63) -> 0 | N64: =AVERAGE(N52:N63) ->  | O64: =MAX(O52:O63) -> 0
J66: =+A5 -> 2025 | K66: mg/Nm3 | L66: Monthly mean of half-hourly averages | M66: Highest half- hourly average | N66: Monthly mean of daily averages | O66: Highest daily average
J67: A5 | K67: Jan
K68: Feb
K69: Mar
K70: Apr
K71: May
K72: Jun
K73: Jul
K74: Aug
K75: Sep
K76: Oct
K77: Nov
K78: Dec
K79: Annual | L79: =AVERAGE(L67:L78) ->  | M79: =MAX(M67:M78) -> 0 | N79: =AVERAGE(N67:N78) ->  | O79: =MAX(O67:O78) -> 0

Sheet Template changes log
A1: Log of changes to template (Environment Agency use only)
A3: Date | B3: Description of change | C3: New version number and date
A4: 2024-01-16 | B4: Air (periodic) tab: corrected default O2 reference from 6 to 11% | C4: Version 23.5a (for incinerators) - 16/01/2024
A5: 2024-09-23 | B5: Air (periodic) tab: corrected symbol for Thallium to Tl
A6: 2024-09-23 | B6: Air (periodic) tab: removed last year's references to different emission limit values applying from 03/12/23 and updated all relevant ELVs
A7: 2024-09-23 | B7: Tabs for continuously monitored pollutants (HCl, SO2 etc.): changed terminology in table headings to improve clarity
A8: 2024-09-23 | B8: Tabs for continuously monitored pollutants (HCl, SO2 etc.): removed last year's references to different emission limit values applying from 03/12/23 and updated all relevant ELVs
A9: 2024-09-23 | B9: Perf 1 tab: updated formula for water usage to report m3 rather than litres and corrected error with formula copying operator name
A10: 2024-09-23 | B10: Operational Summary tab: table added on start-ups and shut-downs
A11: 2024-09-23 | B11: Operational Summary tab: table added on dioxins and mercury protocols
A12: 2024-09-23 | B12: Operational Summary tab: table added on AST, QAL 2 and calibration functions
A13: 2024-09-23 | B13: CO2 N2O tab: various changes made to notes to reflect the fact that most plants should now have calibrated CEMS and flow meters + some have C14 samplers and more up to date industry data | C13: Version 24a (for incinerators) - 23/09/24
A14: 2024-11-08 | B14: CO2 N2O tab: Changed the N2O CO2 equivalence factor from 298 to 265 in line with recently updated government greenhouse gas figures: https://www.gov.uk/government/publications/greenhouse-gas-reporting-conversion-factors-2024
A15: 2024-11-08 | B15: CO2 N2O tab: Added an additional requirement for municipal EfW plants to state the yearly average biogenic percentage of the waste by mass, and reference to a document which sets out a methodology for calculating NCV of waste from the results of C14 sampling.
A16: 2024-11-08 | B16: Permit Compliance tab: Two additional columns added + explanatory notes to the table entitled "Summary of non-compliances under the permit" to allow CCS scores to be stated where relevant.
A17: 2024-11-08 | B17: Residue Quality tab: Note added explaining application of TOC and LOI limits and asking operators to report both metrics where measured. | C17: Version 24.1a (for incinerators) - 08/11/24
A18: 2024-11-27 | B18: Operational Summary tab: table added on start-ups and shut-downs | C18: Version 24.2a (for incinerators) - 27/11/24
A19: 2025-11-27 | B19: Cover Page: Print as PDF and Print Report and pdf buttons deleted and blank columns removed; contents page deleted | C19: Version 25.1a (for incinerators) - 27/11/25
A20: 2025-11-27 | B20: Residue Quality tab renamed to "Residues", and Summary of residue handling table moved from Operational Summary tab to Residues tab.
A21: 2025-11-27 | B21: Various changes made to the Operational Data tab including • Reformatting of the rows under the Operational data heading (Rows 3-8) to make it clearer what information is required. • Amendment of the rows under the Energy Usage / Export heading (Rows 26-32) to calculate an “indicative parasitic load” (now excluding energy imported) • Amendment of the unit for gas usage from cubic feet to cubic metres (Row 50) • Some amendments to the first 2 notes and other minor edits • Deleted "Overall Availability, mean avg. of all lines, hrs" row
A22: 2025-11-27 | B22: Operational Summary tab: Note added requiring all emergency shut-downs be listed, irrespective of whether or not they were reportable.
A23: 2025-11-27 | B23: CO2 N2O tab: Note added to ask operators to ensure that relevant data reported here matches that which will be submitted under the Pollution Inventory
